Cogmind - Beta 16 @@@ ROGUE MODE // 2025.12.03 @ 23:44:44 Player: Boris Result: Establishing 0b11! Performance ------------- Evolutions (9) 4500 Regions Visited (35) 7000 Robots Destroyed (1341) 6705 Value Destroyed (85158) 85158 Prototype IDs (384) 7680 Alien Tech Used (7) 1400 Bonus (131651) 131651 TOTAL SCORE: 244094 Bonus ------- Triggered High Security 1000 High Alert Combat Kills 52853 Follower Combat Kills 1461 Forged Quantum Companion 2000 Network Hubs Disabled 200 Registered with UFD 300 Met Optimus in HQ 500 Met Data Miner 300 Met R17 at Cetus 500 Found Hidden Lab 3000 Met R17 at Research 2000 Scanned by Researcher 500 Destroyed Superfortress 15000 Met Optimus at Protoforge 1000 Executed Drillbomb Mission 10000 Recovered Sigix Corpse 2000 Destroyed MAIN.C Guards 500 Met MAIN.C 5000 Destroyed MAIN.C Shell 5000 Destroyed MAIN.C 10000 Met Architect 300 Destroyed A8 300 Destroyed A6 400 Destroyed A4 700 Destroyed A2 1000 Destroyed Architect 15000 Win 3000 Friendly Fire -2163 Cogmind --------- Core Integrity 592/1600 Matter 235/300 Energy 604/610 System Corruption 0% Temperature Cool (9) Movement Hovering (32) Location 0b11 Command Parts ------- > --- POWER (3) -------- Improved Quantum Reactor Zero-point Reactor Concept Zero-point Core > --- PROPULSION (8) --- Cooled Antigrav System Combat Antigrav System Combat Antigrav System Experimental Gyrokinetic Inverter Cooled Linear Gravjet Cooled Linear Gravjet Combat Linear Gravjet Concept Combat Aerolev Unit > --- UTILITY (12) ----- Concept Antigrav Storage Unit Concept Weapon Articulator Experimental Core Analyzer Improved Armor Integrity Analyzer Experimental Weapon Cycler Femtoactuators Experimental Phase Shifter Heavy Regenerative Plating Graphene Brace (fused) Concept Energy Mantle > --- WEAPON (3) ------- Superquantum Companion > --- INVENTORY (25) --- Improved Quantum Reactor Experimental Power Amplifier 2N-1CE's Frost Array Advanced Energy Well (500) Concept NT7 Matterbank (750) Advanced Quantum Shading Machine ST Field Compressor Experimental Core Analyzer Femtoactuators Femtoactuators Experimental ECM Suite Advanced Reaction Control System Advanced Reaction Control System Advanced Phase Shifter Concept Cloak Mesh Experimental Powered Armor Experimental Powered Armor Experimental Focal Shield Concept Beam Splitter Concept Hardlight Director Perforator Sigix Corpse Peak State ------------ > --- POWER ------------ Experimental Antimatter Reactor Concept Zero-point Core Concept Zero-point Core > --- PROPULSION ------- Experimental Antigrav System Experimental Antigrav System Gravjet Array Gravjet Array Concept Combat Aerolev Unit Concept Combat Aerolev Unit > --- UTILITY ---------- 2N-1CE's Frost Array Concept Antigrav Storage Unit Concept Weapon Articulator Experimental Core Analyzer Experimental Armor Integrity Analyzer Femtoactuators Concept Reaction Jets Heavy Regenerative Plating Concept Beam Splitter Concept Hardlight Director Concept Network Penetrator > --- WEAPON ----------- Perforator Superquantum Companion > --- INVENTORY -------- Concept Zero-point Core Concept Combat Aerolev Unit Concept NT7 Matterbank Structural Scanner Concept Networked Targeting System Precision Matter Filter Femtoactuators Concept Phase Shift Module Concept Cloak Mesh Concept Cloak Mesh Experimental Utility Shielding Graphene Brace Experimental Focal Shield Concept Energy Mantle Concept Antimissile System Improved Hacking Suite Concept Matter Streamer Transdimensional Reconstructor High-powered Transdimensional Reconstructor Warp Cannon Concept Plasma Driver Concept Miniperforator Concept Tactical Fusion Warhead [Rating: 310] Favorites ----------- Power Light Quantum Reactor Engine Improved Ion Engine Power Core Concept Zero-point Core Reactor Light Quantum Reactor Propulsion Combat Linear Gravjet Treads Improved Treads Leg Carbon-fiber Leg Wheel Compact Wheel Hover Unit Combat Linear Gravjet Flight Unit Improved Flight Unit Utility Large Storage Unit Device Graphene Brace Storage Large Storage Unit Processor Experimental Core Analyzer Hackware Improved Hacking Suite Protection Heavy Regenerative Plating Weapon Superquantum Companion Energy Gun Small Laser Energy Cannon Light EM Pulse Cannon Ballistic Gun Heavy Assault Rifle Ballistic Cannon Perforator Launcher Guided EMP Blaster Special Weapon Plasma Cutter Impact Weapon Concept Blasthammer Slashing Weapon Superquantum Companion Piercing Weapon Plasma Lance Special Melee Weapon Improved Datajack Build | -11 -10 -10 -9 -9 -9 -8 -8 -8 -8 -8 -6 -6 -6 -6 -6 -6 -5 -5 -5 -5 -5 -5 -4 -4 -4 -4 -4 -3 -3 -2 -2 -2 -1 -1 -1 ------- Run | Yrd Mat Min Mat Min Exi Min Mat Sto Rec Scr Fac Was Fac Low Low Dat Pro Fac Ext Cet Arc Hub Fac Was Fac Arm Lab Res Qua Res Tes Frg Acc Com Ac0 Slots Evolved 18 | . . . 2 . . . 2 . . . 4 . . . . . . 2 . . . . 2 . . . . 2 . 2 . . 2 . . Power 2 | . . . . . . . . . . . 1 . . . . . . . . . . . . . . . . . . 1 . . . . . Propulsion 5 | . . . 1 . . . . . . . 2 . . . . . . . . . . . 1 . . . . . . . . . 1 . . Utility 10 | . . . . . . . 2 . . . 1 . . . . . . 2 . . . . 1 . . . . 2 . 1 . . 1 . . Weapon 1 | . . . 1 . . . . . . . . . . . . . . . . . . . . . . . . . . . . . . . . Parts Attached 459 | 6 11 . 24 2 4 3 8 23 9 10 21 . 16 10 4 1 . 16 17 4 9 12 14 1 19 23 3 14 8 19 18 74 14 26 16 Power 55 | 1 1 . 1 . 1 1 1 2 . . 3 . 1 2 1 . . 1 2 . . 2 2 . 1 5 . . 1 4 5 12 1 4 . Engine 16 | 1 1 . 1 . 1 1 1 2 . . 1 . 1 2 . . . . . . . 1 . . . . . . . 1 2 . . . . Core 14 | . . . . . . . . . . . 2 . . . 1 . . 1 2 . . 1 2 . 1 1 . . . . . 2 1 . . Reactor 25 | . . . . . . . . . . . . . . . . . . . . . . . . . . 4 . . 1 3 3 10 . 4 . Propulsion 105 | 2 2 . 7 1 . . 2 3 1 3 8 . 5 3 1 1 . 4 . 2 2 4 6 . 3 1 1 6 1 4 2 13 1 11 5 Treads 15 | 2 2 . 6 1 . . 2 . 1 1 . . . . . . . . . . . . . . . . . . . . . . . . . Leg 1 | . . . . . . . . . . . . . . 1 . . . . . . . . . . . . . . . . . . . . . Wheel 2 | . . . . . . . . 2 . . . . . . . . . . . . . . . . . . . . . . . . . . . Hover 86 | . . . . . . . . 1 . 2 8 . 5 2 1 1 . 4 . 2 2 4 6 . 3 1 1 6 1 4 2 13 1 11 5 Flight 1 | . . . 1 . . . . . . . . . . . . . . . . . . . . . . . . . . . . . . . . Utility 186 | 1 4 . 3 . 1 . 3 4 7 5 6 . 7 4 1 . . 6 8 1 5 3 4 . 11 9 1 5 5 10 7 39 10 9 7 Device 92 | . 3 . 1 . . . . 1 1 2 1 . 1 2 1 . . 1 3 . 3 1 3 . 6 5 . 3 3 7 4 24 4 6 6 Storage 11 | 1 1 . 1 . 1 . . . 1 1 . . 1 . . . . 1 . . . 1 . . . . . . . . 1 1 . . . Processor 24 | . . . . . . . 1 . . 1 1 . . 1 . . . 1 1 . . . . . 1 1 . . 1 2 . 7 3 3 . Hackware 36 | . . . 1 . . . . 2 2 . 4 . 4 . . . . 2 1 . 2 . 1 . 3 3 . 2 . 1 2 3 2 . 1 Protection 23 | . . . . . . . 2 1 3 1 . . 1 1 . . . 1 3 1 . 1 . . 1 . 1 . 1 . . 4 1 . . Artifact . | . . . . . . . . . . . . . . . . . . . . . . . . . . . . . . . . . . . . Weapon 113 | 2 4 . 13 1 2 2 2 14 1 2 4 . 3 1 1 . . 5 7 1 2 3 2 1 4 8 1 3 1 1 4 10 2 2 4 Energy Gun 23 | 1 2 . 2 . . 1 . 9 . 1 . . . . . . . 2 1 . . . . . . 1 . . . . . 1 . . 2 Energy Cannon 17 | . . . 3 . . . 2 . . . 1 . 1 . . . . . . 1 . . . 1 2 2 1 . . . 1 2 . . . Ballistic Gun 24 | 1 1 . 8 1 . . . 3 . . . . . . 1 . . 2 2 . 1 . . . 1 1 . . . . . . 2 . . Ballistic Cannon 17 | . . . . . . . . . . . 1 . . . . . . . 4 . . 1 2 . 1 4 . . . . . 2 . . 2 Launcher 10 | . 1 . . . . 1 . 1 . . 2 . 1 . . . . 1 . . . . . . . . . . . . 1 2 . . . Special Weapon 2 | . . . . . 1 . . . . . . . . . . . . . . . . 1 . . . . . . . . . . . . . Impact Weapon 1 | . . . . . . . . . . . . . . . . . . . . . . . . . . . . . . . . 1 . . . Slashing Weapon 12 | . . . . . . . . 1 . 1 . . 1 . . . . . . . . 1 . . . . . 1 1 . 2 2 . 2 . Piercing Weapon 3 | . . . . . . . . . . . . . . . . . . . . . . . . . . . . 2 . 1 . . . . . Special Melee Weapon 4 | . . . . . 1 . . . 1 . . . . 1 . . . . . . 1 . . . . . . . . . . . . . . Unidentified Prototypes 63 | . . . 2 . . . . 6 . 1 3 . 2 . . . . 3 . 1 . 2 . . 2 2 4 3 2 2 5 16 1 . 6 Corrupted Parts 5 | . . . . . . . . . . . . . . . . . . . . 2 . . . . . . . . . . . 1 . 2 . System Corruption 17 | . . . . . . . . . . . . . . . . . . . . 7 . . . . . . . . . . . 4 . 6 . Parts Lost 76 | . 1 . . . . . . 5 . . 1 . 4 9 1 . . 2 3 2 3 6 . 1 6 3 . . 3 5 4 6 2 6 3 Power 16 | . . . . . . . . . . . . . . 3 . . . 1 . . . 2 . . . 1 . . 1 2 1 2 . 3 . Propulsion 21 | . . . . . . . . 1 . . 1 . 2 4 . . . . 2 1 2 2 . . 2 . . . . . 1 1 . 2 . Utility 26 | . . . . . . . . 2 . . . . 1 1 1 . . 1 . 1 1 . . . 2 2 . . 2 3 2 2 1 1 3 Weapon 13 | . 1 . . . . . . 2 . . . . 1 1 . . . . 1 . . 2 . 1 2 . . . . . . 1 1 . . Highest Loss Streak 5 | . 1 . . . . . . 5 . . 1 . 2 5 1 . . 2 1 1 3 3 . 1 2 1 . . 1 2 2 2 1 3 1 To Critical Strikes . | . . . . . . . . . . . . . . . . . . . . . . . . . . . . . . . . . . . . Average Backups 17 | 1 9 15 19 19 19 19 19 19 19 18 13 12 13 10 10 12 12 13 14 14 14 14 14 13 14 14 14 14 14 14 13 20 22 22 22 Power . | . 1 1 1 1 . . . 1 . . . . . . . . . . . . . . . . . . 1 1 . . . . 1 . 1 Propulsion 1 | . . 1 2 2 2 2 1 3 5 4 1 1 1 . . . . 1 1 . . . . . . . . . 1 1 . 2 . 1 . Utility 9 | . 4 8 7 8 10 10 9 8 8 8 8 7 8 7 8 8 9 7 8 7 7 8 10 9 10 9 10 10 7 8 7 10 14 16 18 Weapon 3 | . 2 5 6 5 7 5 6 4 5 4 2 3 1 2 2 3 3 3 4 5 5 4 3 3 3 2 2 1 2 2 3 5 3 2 . Tool/Special . | . . . . . . . . . . . . . . . . . . . . . . . . . . . . . . . . . . . . Unused Backups 95 | . 2 . 11 . . 2 4 5 . 2 3 1 3 2 . 1 1 2 . . 1 2 1 2 2 5 1 4 1 8 6 7 1 4 11 Power 5 | . 1 . 1 . . . . . . 1 1 . . . . . . . . . . . . . . 1 . . . . . . . . . Propulsion 5 | . 1 . 1 . . . . . . . 1 . . 1 . . . . . . . . . . . . . . . . . 1 . . . Utility 73 | . . . 3 . . 1 3 5 . 1 1 1 3 1 . . 1 2 . . 1 2 1 2 1 4 1 4 1 7 5 6 1 4 11 Weapon 11 | . . . 6 . . 1 1 . . . . . . . . 1 . . . . . . . . 1 . . . . . 1 . . . . Tool/Special 1 | . . . . . . . . . . . . . . . . . . . . . . . . . . . . . . 1 . . . . . Average Slot Usage (%) 90 | . 96 100 99 100 88 98 99 98 98 95 91 100 91 63 62 77 80 84 91 80 85 95 95 89 94 98 88 92 94 94 93 81 82 83 86 Engine 4 | . 14 14 11 11 11 10 9 9 9 9 3 . . 5 6 6 6 3 . . . 1 5 5 1 . . . . . 1 . . . . Core 3 | . . . . . . . . . . . 7 13 13 1 . 6 6 7 11 10 11 8 5 5 8 5 . . . . . 5 8 5 3 Reactor 2 | . . . . . . . . . . . . . . . . . . . . . . . . . . 4 10 8 8 11 8 6 1 4 7 Treads 7 | . 27 28 32 33 33 32 27 22 9 6 . . . . . . . . . . . . . . . . . . . . . . . . . Wheel 1 | . . . . . . . . 4 18 12 . . . . . . . . . . . . . . . . . . . . . . . . . Hover 17 | . . . . . . . . . . 7 32 33 32 14 14 23 26 22 22 23 28 28 31 27 29 31 34 30 31 29 28 20 22 25 29 Device 13 | . 11 14 1 . . . 8 7 6 12 8 13 10 11 12 12 12 15 19 18 16 11 14 15 12 12 8 12 16 18 16 18 22 23 23 Storage 6 | . 14 14 11 11 11 11 9 9 9 9 6 6 6 6 6 6 6 5 5 5 5 5 5 5 5 5 5 4 4 4 4 4 3 3 3 Processor 4 | . . . . . . . . . . 2 5 6 6 12 13 13 13 7 1 . . . . . 2 9 10 5 8 6 8 7 7 8 8 Hackware 6 | . . . 9 11 11 11 9 10 9 . 10 6 8 1 . . . 5 6 5 7 17 15 15 18 11 10 12 6 7 7 3 2 . . Protection 4 | . . . . . . . 9 8 9 11 1 . . . . . . 2 5 5 4 5 5 5 . . 3 4 4 4 4 6 3 4 3 Energy Gun 2 | . 15 28 4 . . 4 1 12 15 . . . . . . . . . 1 . . . . . . . . . . . . . . . . Energy Cannon 2 | . . . 11 18 . . 23 3 . . . . . . . . . . . . . 1 . . 4 1 1 . . . . . . . . Ballistic Gun 2 | . 12 . 16 14 . 25 2 7 . . . . . . . . . 3 3 . 1 2 . . . . . . . . . . . . . Slashing Weapon 4 | . . . . . . . . 2 3 8 5 6 6 6 6 6 6 5 5 5 5 4 4 5 5 5 5 5 4 4 8 5 3 3 2 Peak Build Rating 310 | 6 10 9 22 21 21 21 31 39 37 45 71 71 79 63 63 70 69 95 98 91 99 106 131 132 140 150 164 183 186 199 207 294 310 286 281 Average Rating 126 | 4 8 9 18 21 18 20 28 34 34 34 59 70 70 44 46 65 68 84 93 80 82 99 120 117 128 142 144 175 179 191 190 253 291 261 253 On Entrance 93 | . 6 10 9 21 21 18 21 30 37 33 42 71 71 54 42 58 65 69 95 80 78 95 105 131 119 125 150 155 183 179 188 204 284 274 253 Avg Prop Armor Cover (%) 9 | . . . . . . . 7 9 11 10 . . . 11 . . . 12 . . . 2 2 . 1 2 . 4 1 3 . 2 . 1 . Naked Turns . | . . . . . . . . . . . . . . . . . . . . . . . . . . . . . . . . . . . . Heaviest Build 142 | 12 28 28 59 59 49 56 68 69 63 63 54 50 58 42 47 45 41 60 72 74 64 60 70 70 76 83 86 97 95 109 118 136 136 142 119 Greatest Support 128 | 40 40 40 69 69 69 69 69 66 32 36 56 56 59 57 49 69 69 69 69 61 63 65 79 72 83 84 98 98 113 113 103 112 128 128 122 Greatest Overweight (x) 3 | . . . . . . 1 1 3 1 3 1 . 1 2 1 . . 1 1 1 1 1 . . 1 1 . 1 . 1 1 1 1 1 . Average Overweight (x) . | . . . . . . . . . 1 . . . . . . . . . . . . . . . . . . . . . . . . . . Largest Inventory Capacity 25 | 8 15 15 20 20 20 20 20 20 20 20 15 15 15 15 15 15 15 15 15 15 15 15 15 15 15 15 15 15 15 15 15 25 25 25 25 Average Capacity 18 | 6 12 15 19 20 20 20 20 20 20 18 15 15 15 15 15 15 15 15 15 15 15 15 15 15 15 15 15 15 15 15 15 23 25 25 25 Most Carried 25 | 3 15 15 20 20 20 20 20 20 20 20 15 15 15 15 15 15 15 15 15 15 15 15 15 15 15 15 15 15 15 15 15 25 25 25 25 Average Carried 17 | 1 9 15 19 19 19 19 19 19 19 18 14 14 14 14 13 14 14 14 14 14 14 14 14 13 14 14 14 14 14 14 14 22 22 23 24 Final Capacity 25 | 8 15 15 20 20 20 20 20 20 20 15 15 15 15 15 15 15 15 15 15 15 15 15 15 15 15 15 15 15 15 15 15 25 25 25 25 Final Carried 25 | 3 15 15 20 20 20 20 20 20 20 15 15 15 15 15 15 15 15 14 15 15 15 15 14 13 15 15 15 15 14 14 14 25 21 25 23 Class Distribution -------------------- 20% | Mutant 18% | Hacker-Mutant 12% | Scavenger-Mutant 10% | Commander-Mutant 6% | Gunner 5% | Machinist-Mutant 4% | Scavenger-Sprinter 4% | Hacker-Gladiator 4% | Tank Dominant Class ---------------- Mutant | -10/Materials Scavenger-Mutant | -10/Mines Gunner | -9/Materials Gunner | -9/Mines Mutant | -9/Exiles Gunner | -8/Mines Tank | -8/Materials Tank | -8/Storage Commander-Tank | -8/Recycling Commander-Mutant | -8/Scraptown Hacker-Mutant | -6/Factory Mutant | -6/Waste Mutant | -6/Factory Mutant | -6/Lower Caves Mutant | -6/Lower Caves Scavenger-Mutant | -6/Data Miner Scavenger-Mutant | -5/Proximity Caves Scavenger-Mutant | -5/Factory Commander-Mutant | -5/Extension Commander-Mutant | -5/Cetus Scavenger-Mutant | -5/Archives Hacker-Mutant | -5/Hub_04(d) Hacker-Mutant | -4/Factory Hacker-Mutant | -4/Waste Hacker-Mutant | -4/Factory Machinist-Mutant | -4/Armory Machinist-Mutant | -4/Lab Hacker-Mutant | -3/Research Machinist-Mutant | -3/Quarantine Machinist-Mutant | -2/Research Hacker-Gladiator | -2/Testing Mutant | -2/Protoforge Hacker-Sprinter | -1/Access Scavenger-Sprinter | -1/Command Scavenger-Sprinter | -1/Access_0 Resources | -11 -10 -10 -9 -9 -9 -8 -8 -8 -8 -8 -6 -6 -6 -6 -6 -6 -5 -5 -5 -5 -5 -5 -4 -4 -4 -4 -4 -3 -3 -2 -2 -2 -1 -1 -1 ----------- Run | Yrd Mat Min Mat Min Exi Min Mat Sto Rec Scr Fac Was Fac Low Low Dat Pro Fac Ext Cet Arc Hub Fac Was Fac Arm Lab Res Qua Res Tes Frg Acc Com Ac0 Matter Collected 38388 | 250 405 10 635 94 61 343 177 935 137 330 854 . 1087 277 125 . 76 400 396 166 87 291 192 . 396 671 . 421 242 333 435 20067 3525 3885 1085 Remotely 8354 | . . . . . . . . . . . . . . . . . . . . . . . . . . . . . . . . 5379 1585 1390 . Salvage Created 78948 | 48 621 86 1022 271 . 454 1402 2122 268 165 1110 . 1432 746 143 24 52 1013 1009 527 621 1161 323 . 943 1557 . 1693 1221 2518 2457 28521 8995 11883 4540 Parts 3506 | 12 42 12 68 19 . 16 71 104 18 11 58 . 68 23 10 3 1 44 36 19 38 42 9 . 36 91 . 75 50 117 97 1304 398 386 228 Haulers Intercepted 32 | . 2 . 5 . . . 3 4 . . 1 . 3 . . . . 2 . . . 2 . . 1 . . 4 . . . 2 3 . . Recyclers Shooed 10 | . . . 1 . . . 1 1 . . 4 . . . . . . . . . . . . . . . . . . 1 . . . 2 . Parts Field Recycled . | . . . . . . . . . . . . . . . . . . . . . . . . . . . . . . . . . . . . Retrieved Matter . | . . . . . . . . . . . . . . . . . . . . . . . . . . . . . . . . . . . . Parts Self-Destructed 30 | . . . . . . . . . . . . . . 12 17 . 1 . . . . . . . . . . . . . . . . . . Prevented 3 | . . . . . . . . . . . . . . 2 . . 1 . . . . . . . . . . . . . . . . . . Parts Restored 11 | . . . . . . . . . . . . . . . . . . . . . . . . . . . . . . . . 11 . . . Faulty 11 | . . . . . . . . . . . . . . . . . . . . . . . . . . . . . . . . 11 . . . Kills | -11 -10 -10 -9 -9 -9 -8 -8 -8 -8 -8 -6 -6 -6 -6 -6 -6 -5 -5 -5 -5 -5 -5 -4 -4 -4 -4 -4 -3 -3 -2 -2 -2 -1 -1 -1 ------- Run | Yrd Mat Min Mat Min Exi Min Mat Sto Rec Scr Fac Was Fac Low Low Dat Pro Fac Ext Cet Arc Hub Fac Was Fac Arm Lab Res Qua Res Tes Frg Acc Com Ac0 Combat Hostiles Destroyed 1139 | . 13 3 16 6 . 9 18 38 3 3 17 . 16 9 . . 2 6 20 6 3 14 5 . 12 36 . 19 16 28 23 403 109 240 46 Melee 274 | . . . . . . . . . . 2 6 . 6 9 . . 2 5 13 . 1 14 5 . 10 21 . 16 13 21 21 42 17 32 18 Guns 68 | . 13 3 13 2 . 5 . 26 3 . . . . . . . . 1 . . . . . . . . . . . . . . 1 1 . Cannons 440 | . . . 3 4 . . 12 2 . . . . 1 . . . . . 2 . 1 . . . 1 7 . 2 2 2 . 280 81 16 24 AOE 303 | . . . . . . 4 1 8 . 1 7 . 6 . . . . . 5 . . . . . . 6 . . . . . 70 9 186 . Classes Destroyed 35 | 1 6 1 1 . . 2 2 2 . 2 1 . . 1 1 . . . . . . . . . . 2 . 1 2 1 . 8 . 1 . Worker 34 | . . 1 3 1 . . 1 2 . . 1 . 5 . . . . 1 . . . 1 1 . 2 . . . 1 2 6 . 1 5 . Builder 26 | . 1 1 . . . . 1 1 . . 1 . . . . . . 1 . . . . . . . . . 5 1 5 1 2 6 . . Tunneler 13 | 3 . 2 . 1 . . . . . . 1 . 3 . . . . . . . . . . . . . . . . 1 . . 2 . . Hauler 32 | . 2 . 5 . . . 3 4 . . 1 . 3 . . . . 2 . . . 2 . . 1 . . 4 . . . 2 3 . . Recycler 13 | . . . . . . 2 . 1 1 . 2 . . . . . . 2 . . . . 1 . . . . . . 1 1 . . 2 . Carrier 1 | . . . . . . . . . . . . . . . . . . . . . . . . . . . . . . . . . . 1 . Minesweeper 3 | . . . . . . . . . . . . . . 2 1 . . . . . . . . . . . . . . . . . . . . Mechanic 31 | . . . . . . . . 2 . . . . 1 . . . . . . . . . . . 1 . . . . 1 1 14 5 6 . Operator 28 | . 1 . 1 . . . 3 2 . . . . . . . . . 1 1 . 9 2 . . . 1 . 1 . 1 . 4 1 . . Drone 16 | . . . . . . . . . . . . . . . . . . . . . . . . . . . . . . . . 16 . . . Watcher 34 | . 3 . 2 . . . 3 1 . . . . 1 . . . . 1 1 2 . 1 1 . 1 1 . . 1 3 1 4 3 4 . Swarmer 153 | . 3 3 6 2 . 3 . 10 . . 9 . 4 1 . . 2 . 6 . . 2 5 . 5 16 . 7 4 3 . 42 . 20 . Cutter 10 | . . . . . . . . . . . . . . . . . . . . . . . . . . 3 . . . 1 . . . 6 . Saboteur 25 | . . . . . . . . . . . . . . . . . . . . . . . . . . . . . . . . 8 8 9 . Grunt 302 | . 10 . 1 3 . 4 10 16 . . 6 . 9 3 . . . . 9 . . 4 . . 4 5 . 6 4 5 10 75 40 78 . Brawler 41 | . . . . . . . 1 1 . . . . 1 . . . . . . . . . . . . . . . . . . 19 8 11 . Duelist 38 | . . . . . . 2 . . . . . . . . . . . . . . . . . . 1 6 . . . . 1 4 8 16 . Protector 32 | . . . . . . . . 1 . . . . . . . . . . . . . . . . . 2 . . . . . 18 5 6 . Researcher 8 | . . . . . . . . . . . . . . . . . . . . . . . . . . . . . 1 . 2 5 . . . Sentry 70 | . . . 9 1 . . 6 10 3 . . . 1 1 . . . 2 5 . 3 3 . . 2 1 . 4 . 4 . 13 1 1 . Demolisher 3 | . . . . . . . . . . . . . . . . . . . . . . . . . . . . . . . . 1 1 1 . Specialist 21 | . . . . . . . . . . . . . . . . . . . . . . . . . . 2 . . 1 . 2 7 . 9 . Hunter 83 | . . . . . . . 1 . . . . . . . . . . . . . . 3 . . . . . . 1 4 2 40 5 27 . Programmer 129 | . . . . . . . . . . . 2 . 1 . . . . 4 . . . 2 . . . 2 . 1 4 8 8 46 17 34 . Behemoth 2 | . . . . . . . . . . . . . . . . . . . . . . . . . . . . 1 . . . . 1 . . Armor Guard 1 | . . . . . . . . . . . . . . . . . . . . . . . . . . . . . 1 . . . . . . Cetus Guard 6 | . . . . . . . . . . . . . . . . . . . . 6 . . . . . . . . . . . . . . . S7 Guard 2 | . . . . . . . . . . . . . . . . . . . . . . . . . . . . . . 2 . . . . . M Guard 1 | . . . . . . . . . . . . . . . . . . . . . . . . . . . . . . . . . . 1 . Enhanced Grunt 28 | . . . . . . . . . . . . . . . . . . . . . . . . . . . . . . . . . . . 28 Enhanced Sentry 3 | . . . . . . . . . . . . . . . . . . . . . . . . . . . . . . . . . . . 3 Enhanced Hunter 8 | . . . . . . . . . . . . . . . . . . . . . . . . . . . . . . . . . . . 8 CL-0N3 Special 1 | . . . . . . . . . . . . . . . . . . . . . . . . . . . . . . 1 . . . . . Hotshot 6 | . . . . . . . . . . . . . . . . . . . . . . . . . . . . . . . . 6 . . . Decapitator 5 | . . . . . . . . . . . . . . . . . . . . . . . . . . . . . . . . 5 . . . Immortal 4 | . . . . . . . . . . . . . . . . . . . . . . . . . . . . . . . . 4 . . . Combat Programmer 2 | . . . . . . . . . . . . . . . . . . . . . . . . . . . . . . . . . . 2 . Investigator 3 | . . . . . . . . . . . . . . . . . . . . . . . . . . . . . . . . . 2 1 . Striker 53 | . . . . . . . . . . . . . . . . . . . . . . . . . . . . . . . . 41 2 10 . Executioner 67 | . . . . . . . . . . . . . . . . . . . . . . . . . . . . . . . . 47 13 7 . Alpha 7 3 | . . . . . . . . . . . . . . . . . . . . . . . . . . . . . 1 . . 2 . . . V-Series 5 | . . . . . . . . . . . . . . . . . . . . . . . . . . . . . . . . 5 . . . Federalist 1 | . . . . . . . . . . 1 . . . . . . . . . . . . . . . . . . . . . . . . . Ranger 2 | . . . . . . . . . . . . . . . 2 . . . . . . . . . . . . . . . . . . . . Scrapper 2 | . . . . . . . . . . 1 . . . . . . . . . . . . . . . . . . . . . 1 . . . Elite 5 | . . . . . . . . . . . . . . . . . . . . . . . . . . . . . . . . 5 . . . Scrapoid 5 | . . . . . . . . . . . . . . . . . . . . . . . . . . . . . . . . 5 . . . Tinkerer 1 | . . . . . . . . . . . . . . . . . . . . . . . . . . . . . . . . 1 . . . Thug 5 | . . . . . . . . . . 1 . . . 4 . . . . . . . . . . . . . . . . . . . . . Guerrilla 1 | . . . . . . . . . . . . . . . . . . . 1 . . . . . . . . . . . . . . . . Best Kill Streak 155 | 3 3 4 4 3 . 5 4 9 2 3 3 . 5 4 1 1 2 2 5 5 7 4 7 . 6 9 . 7 11 9 7 23 30 155 4 Combat Bots Only 150 | . 3 3 4 3 . 5 3 9 2 3 3 . 3 4 . . 2 1 5 4 2 4 5 . 5 8 . 4 6 8 6 23 25 150 4 Max Kills in Single Turn 12 | 1 1 1 2 2 . 2 2 3 1 1 2 . 2 1 1 1 1 1 3 2 1 1 1 . 2 3 . 1 1 2 1 6 4 12 3 Gunslinging . | . . . . . . . . . . . . . . . . . . . . . . . . . . . . . . . . . . . . Exploded 12 | . . . . . . 2 1 3 . 1 2 . 1 . . . . . 3 . . . . . . 3 . . . . . 6 3 12 . Melee 2 | . . . . . . . . . . 1 1 . 1 1 . . 1 1 1 . 1 1 1 . 2 1 . 1 1 2 1 1 1 1 1 Uniques/NPCs Destroyed 11 | . . . . . . . . . . . . . . . . 1 . . . . . . . . . . . . . . . 1 . 2 7 Data Miner (-6/Data Miner) Superfortress (-2/Protoforge) MAIN.C Shell (-1/Command) MAIN.C (-1/Command) A8 (-1/Access_0) A6 (-1/Access_0) A5 (-1/Access_0) A2 (-1/Access_0) Architect (-1/Access_0) A4 (-1/Access_0) A3 (-1/Access_0) Combat | -11 -10 -10 -9 -9 -9 -8 -8 -8 -8 -8 -6 -6 -6 -6 -6 -6 -5 -5 -5 -5 -5 -5 -4 -4 -4 -4 -4 -3 -3 -2 -2 -2 -1 -1 -1 -------- Run | Yrd Mat Min Mat Min Exi Min Mat Sto Rec Scr Fac Was Fac Low Low Dat Pro Fac Ext Cet Arc Hub Fac Was Fac Arm Lab Res Qua Res Tes Frg Acc Com Ac0 Hostile Shots Fired 3986 | . 63 9 60 12 . 24 56 107 . 16 66 . 171 99 13 . 16 51 73 23 15 106 13 1 90 119 . 77 137 166 163 798 407 512 523 Missed 1941 | . 15 1 21 1 . 3 27 31 . 7 25 . 81 30 4 . 9 18 23 12 5 28 4 . 32 48 . 28 70 62 60 459 164 290 383 Intercepted 17 | . . . . . . . . . . . . . . . . . . . . . . . . . . . . . . . . 13 . 4 . Deflected 61 | . . . . . . . . . . . . . . . . . . . . . . 3 . . . 4 . 5 5 5 1 15 10 10 3 Hits 2045 | . 48 8 39 11 . 21 29 76 . 9 41 . 90 69 9 . 7 33 50 11 10 78 9 1 58 71 . 49 67 104 103 339 243 222 140 Melee 45 | . . . . . . 6 . 2 . . . . 1 . . . . . . . . . . 1 2 8 . . . 1 4 7 3 10 . Projectile 2000 | . 48 8 39 11 . 15 29 74 . 9 41 . 89 69 9 . 7 33 50 11 10 78 9 . 56 63 . 49 67 103 99 332 240 212 140 AOE 21 | . . . . . . . . . . . . . . . . . . . . . . . . . . 1 . . . 1 . 13 1 5 . Critical Strikes 141 | . . . 2 1 . 4 2 1 . 1 4 . . 2 . . . . 3 3 . 2 . . 1 4 . 2 2 13 14 39 10 10 21 Actively Blocked 88 | . . . . . . . . . . . . . . . . . . . . . . . . . . 4 . . . 2 10 35 6 10 21 Part Disruptions 14 | . . . . . . . . . . . . . . . . . . 1 . . . . . . . 3 . 1 . . 1 1 1 6 . Actively Blocked 1 | . . . . . . . . . . . . . . . . . . . . . . . . . . . . . . . . . . 1 . Damage Taken 33171 | . 604 67 655 111 . 448 481 1155 15 231 632 . 1204 868 112 . 113 726 1164 283 274 1393 154 44 1197 1282 . 970 1439 2622 1936 6789 1132 2907 2163 Core 5127 | . 36 8 125 8 . 45 17 52 . 71 185 . 187 305 54 . . 195 180 53 35 205 25 . 268 183 . 130 256 316 235 818 114 524 497 Absorbed by Shields 8094 | . . . . . . . . . . . . . . . . . . . . . . . . . . . . . . 14 310 2063 1703 2104 1900 Redirected to Shielding 322 | . . . . . . . . . . 29 . . . . . . . . . . . . . . . . . . . . . 123 . 170 . Ignored by Resistances 4987 | . . . . . . . . . . . . . . . . . . . . . . . . . . . . . . . . 665 2360 1715 247 Regen/Repaired (Parts) 11300 | . 256 . . . . . . 254 . . . . 76 . . . . 228 . . . . . . 520 . . 715 622 1069 1266 4016 527 971 780 Core Remaining (%) 52 | 100 . 82 . . . 55 . . . 74 . . . . . . 14 . . . . 33 . . . . 58 . 70 . . 5 . . 37 Volleys Fired 1163 | 6 64 4 54 9 . 21 44 82 5 2 51 . 54 2 . . . 15 10 9 8 2 . . 10 25 . 4 7 8 8 415 120 101 23 Largest 3 | 2 2 2 3 3 . 3 3 3 3 1 1 . 1 1 . . . 2 2 1 1 1 . . 1 2 . 1 1 1 1 1 2 1 1 Hottest 183 | 60 80 80 168 168 . 76 168 183 183 33 80 . 85 85 . . . 125 88 81 81 85 . . 88 132 . 100 100 100 100 140 140 140 100 Shots Fired 1617 | 12 126 8 159 26 . 58 117 215 13 2 51 . 53 1 . . . 17 16 9 8 2 . . 10 31 . 4 7 8 8 413 122 98 23 Gun 566 | 12 125 8 130 12 . 55 . 193 12 . . . . . . . . 16 2 . . . . . . . . . . . . . 1 . . Cannon 806 | . . . 29 14 . . 117 20 . . 17 . 14 1 . . . . 11 1 8 2 . . 10 25 . 4 7 8 3 348 116 28 23 Launcher 244 | . 1 . . . . 3 . 2 . 2 34 . 39 . . . . 1 3 8 . . . . . 6 . . . . 5 65 5 70 . Special 1 | . . . . . . . . . 1 . . . . . . . . . . . . . . . . . . . . . . . . . . Kinetic 826 | 6 59 . 107 12 . 55 . 111 . . 8 . 2 . . . . 14 12 . . . . . 1 17 . . . . . 305 94 . 23 Thermal 258 | 6 66 8 23 . . . . 11 13 . 9 . 12 1 . . . . 1 . . 2 . . 3 . . 4 7 8 3 30 23 28 . Explosive 164 | . 1 . . . . 3 . 2 . 2 1 . . . . . . 1 3 . . . . . . 6 . . . . 5 65 5 70 . Electromagnetic 369 | . . . 29 14 . . 117 91 . . 33 . 39 . . . . 2 . 9 8 . . . 6 8 . . . . . 13 . . . Robot Hit Streak 56 | 3 17 5 22 28 . 11 28 26 10 . 1 . 3 . . . . 7 10 10 11 . . . 7 17 . . 6 13 15 56 39 19 35 Robot Miss Streak 14 | 3 2 2 3 1 . 3 5 4 . 1 . . 2 . . . . 2 6 . 1 . . . 1 1 . . . . 2 12 9 2 14 Penetration Max 3 | . . . . . . . . . . . . . . . . . . . . . . . . . . . . . . . . 3 3 1 1 Secondary Targets 5 | . 1 . 1 . . . . 3 . . . . . . . . . . . . . . . . . . . . . . . . . . . Max Gunslinging Chain 1 | . 1 . 1 . . . . 1 . . . . . . . . . . . . . . . . . . . . . . . . . . . Autonomous 127 | . . . . . . . . . . . . . . . . . . . . . . 2 1 1 1 14 . 5 3 4 1 53 18 14 10 Shots Hit Robots 2289 | 6 85 6 99 19 13 40 87 174 14 16 30 . 25 49 10 1 2 41 61 7 29 59 10 . 42 74 . 56 44 102 94 458 150 172 214 Core Hits 2623 | 3 39 5 39 9 . 20 40 81 5 6 29 . 45 14 3 1 2 15 51 11 11 22 6 . 16 46 . 26 21 41 32 1008 384 469 123 Critical Kills 386 | . . . . . . . . 1 . . . . . . . . . 1 . . . . . . . . . . . . . 277 81 2 24 Critical Parts Destroyed 454 | . 1 . . . . . . 1 . . . . . . . . . 3 . . . . . . . . . . . . . 329 106 . 14 Critical Strikes 949 | . 1 . . . . . 2 4 1 . . . 2 . . . . 4 10 . 1 4 . . 4 7 . 4 . 4 9 635 196 8 53 Burn 2 | . . . . . . . . 1 1 . . . . . . . . . . . . . . . . . . . . . . . . . . Meltdown 5 | . . . . . . . . . . . . . . . . . . . . . . . . . . . . . . . . 1 2 2 . Destroy 863 | . 1 . . . . . . 2 . . . . . . . . . 4 . . . . . . . . . . . . . 621 194 . 41 Blast 1 | . . . . . . . . . . . . . . . . . . . . . . . . . . 1 . . . . . . . . . Corrupt 4 | . . . . . . . 2 1 . . . . . . . . . . . . 1 . . . . . . . . . . . . . . Smash 3 | . . . . . . . . . . . . . . . . . . . . . . . . . . . . . . . . 3 . . . Impale 1 | . . . . . . . . . . . . . . . . . . . . . . . . . . . . . . . 1 . . . . Melee Attacks 1786 | . . . . . 13 . . 17 6 25 65 . 45 61 20 28 7 56 58 . 24 73 15 . 63 90 7 79 68 141 112 242 88 164 219 Impact 10 | . . . . . . . . . . . . . . . . . . . . . . . . . . . . . . . . 10 . . . Slashing 1728 | . . . . . . . . 17 1 11 63 . 45 60 20 28 7 56 58 . 24 73 15 . 63 90 7 79 67 135 106 232 88 164 219 Piercing 13 | . . . . . . . . . . . . . . . . . . . . . . . . . . . . . 1 6 6 . . . . Sneak Attacks 191 | . . . . . 13 . . 9 5 14 9 . 7 4 6 1 . 7 3 . 10 7 2 . 5 7 . 13 5 15 17 17 5 2 8 Combat Hostiles 19 | . . . . . . . . . . . . . . 1 . . . . . . . 2 . . 1 4 . 3 1 3 2 1 1 . . Follow-up Attacks 30 | . . . . . . . . . . . . . . . . . . . 1 . . . . . 3 3 . 1 . 2 3 3 4 5 5 Martial Strikes 12 | . . . . . . . . . . . . . . . . . . . . . . . . . . . . . . . . 12 . . . Damage Inflicted 216799 | 62 867 151 1756 386 . 809 2246 4534 230 189 2600 . 2817 2356 663 75 81 1861 3518 966 1741 4173 783 97 2761 6705 . 4800 3979 8948 9439 47985 13229 70164 15828 Guns 6037 | 61 843 90 1128 160 . 603 . 2852 154 . . . . . . . . 105 26 . . . . . . . . . . . . . 15 . . Cannons 27131 | . . . 464 209 . . 2078 263 . . . . 185 . . . . . 325 31 178 172 99 97 246 1767 . 447 462 421 120 10241 5029 3158 1139 Explosions 90087 | . . . 160 . . 206 154 739 . 112 1058 . 1581 . . . . . 963 935 . . . . . 1003 . . . . 608 23837 3065 55666 . Melee 93364 | . . . . . . . . 631 66 77 1542 . 1051 2356 663 75 81 1756 2204 . 1563 4001 684 . 2515 3935 . 4353 3517 8527 8711 13907 5120 11340 14689 Ramming 170 | 1 24 61 4 17 . . 14 49 . . . . . . . . . . . . . . . . . . . . . . . . . . . Kinetic 10744 | 6 277 . 983 160 . 603 . 1478 . . . . . . . . . 59 351 . . . . . . 214 . . . . . 4568 1780 . 265 Thermal 6688 | 55 566 90 305 . . . 154 502 164 . 25 . 221 . . . . . . . . . . . . . . . 173 89 47 676 1702 1919 . Explosive 85371 | . . . . . . 206 . 352 . 112 . . 258 . . . . . 963 . . . . . . 1003 . . . . 608 23138 3065 55666 . Electromagnetic 8632 | . . . 464 209 . . 2078 1522 . . 1033 . 1287 . . . . 46 . 966 178 . . . 160 265 . . . . . 424 . . . Impact 1777 | . . . . . . . . . . . . . . . . . . . . . . . . . . . . . . . . 1777 . . . Slashing 91834 | . . . . . . . . 631 66 77 1542 . 1051 2356 663 75 81 1756 2204 . 1563 4001 684 . 2515 3935 . 4353 3517 8272 8514 12829 5120 11340 14689 Piercing 452 | . . . . . . . . . . . . . . . . . . . . . . . . . . . . . . 255 197 . . . . Phasic 11131 | . . . . . . . . . . . . . . . . . . . . . . 172 99 97 86 1288 . 447 289 332 73 4573 1562 1239 874 Highest Corruption 19 | . . . 2 2 2 2 . 5 5 . 1 11 13 13 13 13 13 7 7 14 14 3 . . . 3 3 7 9 1 4 19 3 12 . Average Corruption 6 | . . . 2 2 2 2 . 5 5 . 1 6 11 13 13 13 13 5 7 8 10 2 . . . 2 3 6 8 1 1 7 1 7 . Corruption Purged 54 | . . . . . . . . . . . . . . . . . . . . . 14 . . . . . . . . . 3 19 . 18 . Corruption Blocked . | . . . . . . . . . . . . . . . . . . . . . . . . . . . . . . . . . . . . Effects 583 | . . . 17 7 5 6 . 18 32 . 2 3 53 46 19 7 7 18 38 8 10 2 . . . 5 3 26 27 10 12 157 3 42 . Message Errors 143 | . . . 5 . 2 . . 2 8 . 1 1 17 16 6 . 2 5 6 2 1 1 . . . . 1 5 8 3 2 40 2 7 . Matter Fused 143 | . . . 3 1 2 1 . 3 10 . 1 . 13 7 5 3 . 6 8 1 2 1 . . . 2 . 8 9 2 4 41 . 10 . Heat Flow Errors 69 | . . . . 3 1 1 . 5 1 . . . 7 8 4 . 1 1 7 1 1 . . . . 2 1 5 2 . . 18 . . . Energy Discharges 65 | . . . 2 . . . . 1 5 . . . 3 4 2 1 2 2 3 1 2 . . . . . 1 2 1 3 1 21 . 8 . Parts Rejected 6 | . . . . 1 . . . . . . . . . . . . . . . 1 . . . . . . . . 2 . . 1 . 1 . Parts Fused 11 | . . . . . . . . . 2 . . . . 1 1 . 1 . 1 . . . . . . . . 1 1 1 . 1 . 1 . Data Loss (minor) 67 | . . . 4 2 . 1 . 2 2 . . . 5 3 1 . 1 2 8 1 2 . . . . 1 . 2 4 1 5 17 . 3 . Data Loss (major) 30 | . . . . . . 2 . 2 3 . . . 1 4 . 1 . . 2 1 . . . . . . . 2 . . . 10 . 2 . Misfires 8 | . . . 1 . . . . 2 . . . . . . . . . 1 2 . 1 . . . . . . . . . . . 1 . . Alerts 17 | . . . . . . . . 1 1 . . . 2 1 . 1 . 1 1 . . . . . . . . 1 . . . 5 . 3 . Misdirections 13 | . . . . . . . . . . . . 2 4 1 . 1 . . . . . . . . . . . . . . . 1 . 4 . Weapon Failures 11 | . . . 2 . . 1 . . . . . . 1 1 . . . . . . 1 . . . . . . . . . . 2 . 3 . Overload Shots . | . . . . . . . . . . . . . . . . . . . . . . . . . . . . . . . . . . . . Overflow Damage 15962 | . . . 17 . . 1 20 298 . . 315 . 194 463 144 . . 307 155 . 489 423 164 . 381 774 . 334 640 1153 1310 3278 1277 3468 357 Projectiles 1029 | . . . . . . . 8 . . . . . . . . . . . . . . . . . . 314 . 15 . 24 . 253 289 95 31 Explosions 4268 | . . . 17 . . 1 12 109 . . 17 . 2 . . . . . 37 . . . . . . 130 . . . . 45 1143 240 2515 . Melee 10665 | . . . . . . . . 189 . . 298 . 192 463 144 . . 307 118 . 489 423 164 . 381 330 . 319 640 1129 1265 1882 748 858 326 Knockbacks 193 | . 1 1 . . . . . . . . . . . . . . . . 3 . . . . . . 4 . . . . . 114 62 . 8 Impact 8 | . 1 1 . . . . . . . . . . . . . . . . . . . . . . . . . . . . . 6 . . . Kinetic 178 | . . . . . . . . . . . . . . . . . . . 3 . . . . . . 3 . . . . . 106 58 . 8 Secondary 7 | . . . . . . . . . . . . . . . . . . . . . . . . . . 1 . . . . . 2 4 . . Self-Inflicted Damage 730 | . . . 138 . . 47 56 27 . 49 . . . . . . . . . . . . . . . 13 . . . . . 124 . 276 . Shots 13 | . . . 3 . . 2 1 1 . 1 . . . . . . . . . . . . . . . 1 . . . . . 1 . 3 . Rammed 24 | 2 7 7 . 2 . . 2 4 . . . . . . . . . . . . . . . . . . . . . . . . . . . Targets Rammed 28 | 2 7 9 1 2 . . 3 4 . . . . . . . . . . . . . . . . . . . . . . . . . . . Kicked . | . . . . . . . . . . . . . . . . . . . . . . . . . . . . . . . . . . . . Crushed 4 | . . 2 1 . . . 1 . . . . . . . . . . . . . . . . . . . . . . . . . . . . Highest Temperature 351 | 20 159 72 237 351 235 241 198 295 201 31 156 . 307 271 257 . 163 144 281 242 256 92 152 . 77 224 272 235 230 351 233 271 232 329 . Average Temperature 60 | 14 61 38 51 136 124 50 61 95 68 9 38 . 90 121 116 . 87 63 88 93 110 17 31 . 19 51 68 49 60 24 100 88 64 71 . Received Heat Transfer 4316 | . 303 . 162 51 . 135 225 468 9 115 90 . 132 345 21 . . 27 342 . 36 171 12 . 246 30 . 133 102 189 148 665 14 75 70 Effects 8 | . . . . 3 . . . . . . . . . 2 . . . . 1 . . . . . . . . . . . . . 1 1 . Shutdowns 1 | . . . . . . . . . . . . . . . . . . . . . . . . . . . . . . . . . . 1 . Energy Bleed 2 | . . . . . . . . . . . . . . 1 . . . . 1 . . . . . . . . . . . . . . . . Interference 5 | . . . . 3 . . . . . . . . . 1 . . . . . . . . . . . . . . . . . . 1 . . Siege Activations . | . . . . . . . . . . . . . . . . . . . . . . . . . . . . . . . . . . . . Martial Activations . | . . . . . . . . . . . . . . . . . . . . . . . . . . . . . . . . . . . . Shielding Activations . | . . . . . . . . . . . . . . . . . . . . . . . . . . . . . . . . . . . . Robots Disrupted 14 | . . . . . . . . . . . . . . . . . . . . 1 . 1 . . . . . . 2 . 3 2 . 1 4 Combat Hostiles 14 | . . . . . . . . . . . . . . . . . . . . 1 . 1 . . . . . . 2 . 3 2 . 1 4 Robots Corrupted 28 | . . . . . . . 5 2 . . 4 . 3 . . . . . . 6 1 . . . 1 1 . . . . . 5 . . . Combat Hostiles 28 | . . . . . . . 5 2 . . 4 . 3 . . . . . . 6 1 . . . 1 1 . . . . . 5 . . . Parts Fried 68 | . . . 4 . . . 16 10 . . 6 . 6 . . . . . . 5 1 . . . 1 2 . . . . . 17 . . . Impact Corruptions 10 | . . . . . . . . . . . . . . . . . . . . . . . . . . . . . . . . 10 . . . Robots Melted 6 | . . . . . . . . . . . . . . . . . . . . . . . . . . . . . . . . 1 2 3 . Combat Hostiles 4 | . . . . . . . . . . . . . . . . . . . . . . . . . . . . . . . . 1 . 3 . Parts Melted 17 | . . 1 1 . . . . . . . . . . . . . . . . . . 1 . . . . . . . . . 4 7 3 . Heat Transferred 6357 | 125 1275 200 475 . . . 100 658 370 . 50 . 272 . . . . . . . . . . . . . . . 120 72 9 507 1050 1074 . Parts Sabotaged 8 | . . . . . . . . . . . . . . . . . . . . . . . . . . . . . . . . 2 3 3 . Parts Stolen . | . . . . . . . . . . . . . . . . . . . . . . . . . . . . . . . . . . . . Parts Stripped 230 | . . . . . . . . . . . . . . . . . . . . . . 7 . . . 6 . 12 12 35 27 23 12 20 76 Power Chain Reactions 12 | . . . 1 . . . 2 4 . . 3 . 2 . . . . . . . . . . . . . . . . . . . . . . Alert | -11 -10 -10 -9 -9 -9 -8 -8 -8 -8 -8 -6 -6 -6 -6 -6 -6 -5 -5 -5 -5 -5 -5 -4 -4 -4 -4 -4 -3 -3 -2 -2 -2 -1 -1 -1 ------- Run | Yrd Mat Min Mat Min Exi Min Mat Sto Rec Scr Fac Was Fac Low Low Dat Pro Fac Ext Cet Arc Hub Fac Was Fac Arm Lab Res Qua Res Tes Frg Acc Com Ac0 Maximum Alert Level 5 | . . . 1 . . . 1 2 1 . 3 1 3 . . . . . 2 2 . 1 1 . 1 2 . 1 2 3 2 5 5 5 . Low Security (%) 37 | 100 100 100 50 100 . 100 55 32 52 . 55 . 6 . . . . 100 26 . 100 53 94 100 96 37 . 50 47 . . 3 . . . Level 1 22 | . . . 49 . . . 44 18 47 . 5 100 37 . . . . . 2 52 . 46 5 . 3 45 . 49 39 46 58 12 . . . Level 2 16 | . . . . . . . . 48 . . 37 . 51 . . . . . 70 47 . . . . . 16 . . 13 49 41 9 . . . Level 3 1 | . . . . . . . . . . . 1 . 3 . . . . . . . . . . . . . . . . 3 . 7 . . . Level 4 . | . . . . . . . . . . . . . . . . . . . . . . . . . . . . . . . . 1 . . . Level 5 16 | . . . . . . . . . . . . . . . . . . . . . . . . . . . . . . . . 64 16 59 . High Security 4 | . . . . . . . . . . . . . . . . . . . . . . . . . . . . . . . . . 83 40 . Max Security . | . . . . . . . . . . . . . . . . . . . . . . . . . . . . . . . . . . . . Peak Influence 14622 | 10 111 75 302 152 . 156 270 621 304 . 703 229 733 . . . . 121 658 470 187 271 202 50 209 479 . 317 635 747 526 12307 11007 14622 . Initial 7384 | . . 39 . 102 . . 16 89 154 . . 229 153 . . . . 40 22 312 172 18 124 50 . 93 . . 128 357 382 270 7384 7044 . Average 1651 | 1 25 4 156 46 . 108 135 330 182 . 289 224 410 . . . . 71 363 396 111 165 128 13 76 246 . 156 239 468 392 4269 8733 12046 . Influence Increases 41108 | 15 446 122 884 170 . 266 605 1340 413 . 1054 . 1090 175 5 20 85 452 1306 278 162 667 227 . 586 1220 . 735 907 1276 1086 13367 3883 7880 386 Destroy 0b10 Robot/C 21660 | . 260 60 400 120 . 180 360 800 80 . 340 . 320 100 . 20 40 140 720 160 80 300 100 . 240 740 . 380 300 500 500 7580 2120 4720 . Destroy 0b10 Robot/NC 1350 | 15 35 20 60 10 . 10 50 70 5 . 30 . 65 15 5 . . 50 15 10 45 30 15 . 25 20 . 50 15 70 55 315 130 115 . Destroy Leader 3026 | . 60 10 144 10 . 30 112 190 . . 72 . 48 . . . . 58 72 . . 84 12 . 54 66 . 88 22 136 62 1028 322 346 . Allied During Kill 900 | . . 8 21 . . . . 48 50 . . . . . . . . 2 251 102 22 16 . . . 38 . . . . . 321 . 21 . Successful Hack 950 | . 24 24 59 . . . 31 10 68 . 59 . 58 . . . . 72 29 . . 16 14 . 22 75 . 50 105 117 67 41 9 . . Select Force Hacks 400 | . 30 . 30 . . . . . 210 . . . 80 . . . . . . . . . 20 . . . . 30 . . . . . . . Disable Machine 2595 | . . . 120 . . 15 . 120 . . 105 . 165 . . . . 75 105 . 15 45 15 . . 105 . 45 75 . 105 1140 105 90 150 Anti-Garrison Action 200 | . . . . . . . . . . . . . . . . . . . . . . . . . . . . . 150 . . . . 50 . Destroy Structure 5542 | . 7 . 50 . . 16 7 42 . . 58 . 69 . . . . 40 84 6 . 26 6 . 50 146 . 32 30 93 147 2282 612 1503 236 Partial Spotted 390 | . . . . . . . . . . . 75 . 75 . . . . 15 . . . 15 . . 15 . . 30 . 30 15 15 30 75 . Lose Combat Pursuer 4095 | . 30 . . 30 . 15 45 60 . . 315 . 210 60 . . 45 . 30 . . 135 45 . 180 30 . 30 210 330 135 645 555 960 . Influence Decreases 40752 | 15 344 224 620 434 . 222 437 1155 745 65 399 436 600 787 102 20 20 471 794 406 538 466 337 145 394 1097 315 506 501 1230 1287 1540 5183 4073 14844 Entered New Map 27275 | . . 63 . 162 . . 28 123 243 65 . 426 66 263 19 . . 25 24 246 258 36 131 95 . 99 315 . 101 278 299 210 4923 3963 14814 Time Decay 9704 | 15 344 78 449 272 . 222 409 652 502 . 379 10 494 434 73 20 20 416 486 120 150 310 206 20 342 458 . 493 350 592 498 770 90 30 . Lost Part 734 | . . . . . . . . 50 . . 10 . 40 90 10 . . 20 24 20 30 60 . 10 50 30 . . 30 50 40 60 20 60 30 Lost Ally 843 | . . . 21 . . . . 30 . . 10 . . . . . . 10 260 20 100 60 . 20 2 60 . . 20 10 . 200 . 20 . Purge Threat 2196 | . . 83 150 . . . . 300 . . . . . . . . . . . . . . . . . 450 . 13 . 300 450 300 150 . . Squads Dispatched 197 | . 3 . 2 . . . 1 6 . . 10 . 20 . . . . 9 3 . . 6 5 . 10 10 . 11 7 10 9 19 34 22 . Investigation 66 | . 3 . 2 . . . . 1 . . 6 . 10 . . . . 5 . . . 1 4 . 6 4 . 7 2 4 1 9 1 . . Extermination 31 | . . . . . . . . . . . 2 . 3 . . . . 3 . . . 1 1 . 3 3 . . 2 3 5 4 1 . . Reinforcement 32 | . . . . . . . 1 1 . . 1 . 4 . . . . 1 2 . . 4 . . 1 3 . 4 1 2 2 5 . . . Assault 66 | . . . . . . . . 2 . . 1 . 3 . . . . . 1 . . . . . . . . . 2 1 1 1 32 22 . Garrison 2 | . . . . . . . . 2 . . . . . . . . . . . . . . . . . . . . . . . . . . . Intercept . | . . . . . . . . . . . . . . . . . . . . . . . . . . . . . . . . . . . . Searches Triggered . | . . . . . . . . . . . . . . . . . . . . . . . . . . . . . . . . . . . . Unchained Authorized 4 | . . . . . . . . . . . . . . . . . . . 1 . . . . . . . . . 1 1 1 . . . . Construction Impeded 4 | . . . . . . . 1 . . . . . 1 . . . . . 1 . . . . . . . . . . . . 1 . . . Haulers Reinforced 6 | . . . . . . . . . . . . . 1 . . . . . . . . 1 . . 1 . . 2 . . 1 . . . . Active Scanning Responses . | . . . . . . . . . . . . . . . . . . . . . . . . . . . . . . . . . . . . Cargo Convoy Interrupts . | . . . . . . . . . . . . . . . . . . . . . . . . . . . . . . . . . . . . Stealth | -11 -10 -10 -9 -9 -9 -8 -8 -8 -8 -8 -6 -6 -6 -6 -6 -6 -5 -5 -5 -5 -5 -5 -4 -4 -4 -4 -4 -3 -3 -2 -2 -2 -1 -1 -1 --------- Run | Yrd Mat Min Mat Min Exi Min Mat Sto Rec Scr Fac Was Fac Low Low Dat Pro Fac Ext Cet Arc Hub Fac Was Fac Arm Lab Res Qua Res Tes Frg Acc Com Ac0 Distress Signals 69 | . . . 2 . . . 1 2 . . 2 . 1 . . . . 2 1 2 . 6 2 . 2 2 . 3 2 1 . 14 3 21 . Communications Jammed 25 | . . . . . . . . . . . . . . . . . . . . . . . . . . 3 . . 16 . . 6 . . . Distress Signals 23 | . . . . . . . . . . . . . . . . . . . . . . . . . . 3 . . 16 . . 4 . . . Times Spotted 1409 | . 26 3 26 9 . 10 37 53 2 11 40 5 44 14 6 4 8 16 41 9 9 26 13 3 39 46 . 26 54 60 37 370 141 166 55 Peak Tracking Total 64 | . 5 3 5 3 . 3 6 9 2 4 5 5 8 4 5 4 7 4 13 5 2 6 6 3 10 5 . 4 13 6 6 14 13 64 6 Tactical Retreats 133 | . 2 . . 1 . 1 2 3 . 1 10 . 10 3 2 . 1 . 1 . . 3 1 1 4 2 . 2 6 9 6 28 14 18 2 ECM-based Alert Blocks 6 | . . . . . . . . . . . 1 . . . 5 . . . . . . . . . . . . . . . . . . . . Traps | -11 -10 -10 -9 -9 -9 -8 -8 -8 -8 -8 -6 -6 -6 -6 -6 -6 -5 -5 -5 -5 -5 -5 -4 -4 -4 -4 -4 -3 -3 -2 -2 -2 -1 -1 -1 ------- Run | Yrd Mat Min Mat Min Exi Min Mat Sto Rec Scr Fac Was Fac Low Low Dat Pro Fac Ext Cet Arc Hub Fac Was Fac Arm Lab Res Qua Res Tes Frg Acc Com Ac0 Traps Triggered 37 | . . . 1 . . . . . . . 1 . 7 . . . . 1 . . . . 1 . 2 1 . 2 2 3 . 15 1 . . Indirectly 5 | . . . . . . . . . . . . . 5 . . . . . . . . . . . . . . . . . . . . . . Trap Hack Attempts . | . . . . . . . . . . . . . . . . . . . . . . . . . . . . . . . . . . . . Triggered . | . . . . . . . . . . . . . . . . . . . . . . . . . . . . . . . . . . . . Disarmed 3 | . 3 . . . . . . . . . . . . . . . . . . . . . . . . . . . . . . . . . . Reprogrammed . | . . . . . . . . . . . . . . . . . . . . . . . . . . . . . . . . . . . . Reused 3 | . . . . . . . . . . 1 . . . 2 . . . . . . . . . . . . . . . . . . . . . Traps Extracted . | . . . . . . . . . . . . . . . . . . . . . . . . . . . . . . . . . . . . Installed 3 | . . . . . . . . . . 1 . . . 2 . . . . . . . . . . . . . . . . . . . . . Triggered 2 | . . . . . . . . . . . . . . 2 . . . . . . . . . . . . . . . . . . . . . Most Traps Carried 4 | . . . . . . . . . . 1 . . . 4 3 3 3 2 . . . . . . . . . . . . . . . . . Machines | -11 -10 -10 -9 -9 -9 -8 -8 -8 -8 -8 -6 -6 -6 -6 -6 -6 -5 -5 -5 -5 -5 -5 -4 -4 -4 -4 -4 -3 -3 -2 -2 -2 -1 -1 -1 ---------- Run | Yrd Mat Min Mat Min Exi Min Mat Sto Rec Scr Fac Was Fac Low Low Dat Pro Fac Ext Cet Arc Hub Fac Was Fac Arm Lab Res Qua Res Tes Frg Acc Com Ac0 Machines Disabled 183 | . . . 8 . . 1 . 8 . 3 7 . 11 . . 1 . 5 7 . 1 3 1 . . 7 2 3 6 . 7 77 7 8 10 Max in Single Turn 12 | . . . 3 . . 1 . 1 . 1 2 . 4 . . 1 . 1 1 . . 1 1 . . 1 1 1 1 . 1 12 1 2 1 Garrison Access 15 | . . . . . . . . 1 . . 1 . 2 . . . . 1 . . . 1 1 . 1 . . 1 1 3 1 1 . . . Phase Generator 1 | . . . . . . . . . . . . . . . . . . . . . . . . . . . . . . . . . . 1 . Network Hub 1 | . . . . . . . . . . . . . . . . . . . . . . 1 . . . . . . . . . . . . . Energy Cycler 1 | . . . . . . . . . . . . . . . . . . . 1 . . . . . . . . . . . . . . . . Machines Repaired . | . . . . . . . . . . . . . . . . . . . . . . . . . . . . . . . . . . . . Machines Dismantled 3 | . . . . . . . . 2 . . . . . . . . . . . . . 1 . . . . . . . . . . . . . Machines Sabotaged . | . . . . . . . . . . . . . . . . . . . . . . . . . . . . . . . . . . . . Overloaded Fab Kills . | . . . . . . . . . . . . . . . . . . . . . . . . . . . . . . . . . . . . Hacking | -11 -10 -10 -9 -9 -9 -8 -8 -8 -8 -8 -6 -6 -6 -6 -6 -6 -5 -5 -5 -5 -5 -5 -4 -4 -4 -4 -4 -3 -3 -2 -2 -2 -1 -1 -1 --------- Run | Yrd Mat Min Mat Min Exi Min Mat Sto Rec Scr Fac Was Fac Low Low Dat Pro Fac Ext Cet Arc Hub Fac Was Fac Arm Lab Res Qua Res Tes Frg Acc Com Ac0 Machines Accessed 275 | . 11 3 15 . 1 . 11 15 13 5 22 . 26 2 . 4 . 15 3 . . 7 7 . 18 15 . 17 13 19 11 17 3 . 2 Terminals 151 | . 8 3 10 . . . 7 12 6 . 10 . 14 . . . . 8 3 . . 6 1 . 8 11 . 8 10 11 6 7 2 . . Fabricators 22 | . . . . . . . . . . . 1 . 4 . . . . 1 . . . . 3 . 2 2 . 2 . 1 1 4 1 . . Repair Stations 17 | . 1 . 1 . . . 1 1 . . 2 . 1 . . . . 1 . . . . . . 3 1 . 1 2 1 . 1 . . . Recycling Units 39 | . 2 . 2 . . . 1 1 7 . 5 . 5 . . . . 3 . . . . 1 . 3 1 . 3 . 2 . 3 . . . Scanalyzers 18 | . . . 2 . . . 2 . . . 2 . 1 . . . . 1 . . . . 1 . 1 . . 2 1 1 3 1 . . . Garrison Access 14 | . . . . . . . . 1 . . 2 . 1 . . . . 1 . . . 1 1 . 1 . . 1 . 3 1 1 . . . Total Hacks 1043 | . 35 19 43 . 1 . 34 42 49 35 55 . 74 8 . 30 . 61 11 . . 35 32 . 83 84 . 69 43 76 50 41 12 . 21 Successful 638 | . 16 9 26 . 1 . 24 29 31 35 33 . 42 8 . 30 . 30 5 . . 18 21 . 55 38 . 50 24 34 22 29 7 . 21 Failed 399 | . 18 9 16 . . . 10 13 18 . 21 . 32 . . . . 31 6 . . 17 10 . 28 46 . 18 19 42 28 12 5 . . Catastrophic 63 | . 1 3 3 . . . 1 1 1 . 4 . 5 . . . . 6 3 . . 1 . . 2 9 . 2 5 11 4 1 . . . Database Lockouts 6 | . 1 1 1 . . . . . . . 1 . . . . . . . . . . . 1 . . . . 1 . . . . . . . Manual 452 | . 16 6 28 . . . 21 15 25 . 27 . 36 . . . . 38 9 . . 26 16 . 38 48 . 25 19 30 14 10 5 . . Terminals 564 | . 24 19 27 . . . 26 27 24 . 23 . 35 . . . . 37 11 . . 33 7 . 45 63 . 35 30 46 26 19 7 . . Fabricators 89 | . . . . . . . . . . . 4 . 9 . . . . 7 . . . . 15 . 10 16 . 5 . 2 7 9 5 . . Repair Stations 95 | . 7 . 2 . . . 1 11 . . 3 . 6 . . . . 5 . . . . . . 17 4 . 13 8 10 . 8 . . . Recycling Units 97 | . 4 . 7 . . . 1 2 25 . 13 . 15 . . . . 6 . . . . 3 . 7 1 . 6 . 4 . 3 . . . Scanalyzers 73 | . . . 7 . . . 6 . . . 7 . 7 . . . . 3 . . . . 5 . 2 . . 9 5 6 15 1 . . . Garrison Access 30 | . . . . . . . . 2 . . 5 . 2 . . . . 3 . . . 2 2 . 2 . . 1 . 8 2 1 . . . Terminal Hacks 242 | . 6 9 6 . 1 . 5 10 8 35 2 . 9 8 . 30 . 6 2 . . 4 1 . 16 17 . 15 6 7 8 6 4 . 21 Record 73 | . . 1 . . 1 . . . . 33 . . . 7 . 11 . . . . . . . . . . . . 2 . . 1 . . 17 Part Schematic 21 | . . . . . . . . 1 5 . . . . . . 11 . 2 . . . . . . 2 . . . . . . . . . . Robot Schematic 7 | . . 1 . . . . . . 1 . . . . . . 5 . . . . . . . . . . . . . . . . . . . Robot Analysis 5 | . 2 . . . . . . 1 . . . . . . . . . 1 . . . . . . . . . 1 . . . . . . . Prototype ID Bank 7 | . . . 1 . . . . . 1 . . . . . . 3 . . . . . . . . . 1 . . . . . 1 . . . Open Door 7 | . . . . . . . . 2 . 1 . . . 1 . . . . . . . . . . . 3 . . . . . . . . . Level Access Points 1 | . . 1 . . . . . . . . . . . . . . . . . . . . . . . . . . . . . . . . . Branch Access Points 5 | . . . . . . . 1 . . . . . . . . . . . . . . . . . 1 . . 1 . 1 . . 1 . . Machine Index 4 | . . . . . . . . . . . . . . . . . . . . . . 1 . . 1 . . 1 . 1 . . . . . Terminal Index 12 | . 1 . . . . . 1 . 1 . 1 . 2 . . . . . 1 . . . . . . 1 . 2 1 . . . 1 . . Fabricator Index 2 | . . . . . . . . . . . . . . . . . . 1 . . . . . . . 1 . . . . . . . . . Repair Station Index 1 | . . . . . . . . . . . . . . . . . . . . . . . . . 1 . . . . . . . . . . Scanalyzer Index 1 | . . . . . . . . . . . . . . . . . . . . . . . . . . 1 . . . . . . . . . Alert Level 16 | . . 1 1 . . . . 2 . . . . 1 . . . . . 1 . . 1 . . 2 1 . 1 1 1 2 . 1 . . Unreport Threat 17 | . . 1 1 . . . . 2 . . . . . . . . . . . . . . . . . 3 . 2 . 2 3 2 1 . . Locate Traps 10 | . 1 . . . . . 1 1 . . . . 2 . . . . . . . . . 1 . 1 2 . . 1 . . . . . . Disarm Traps 1 | . 1 . . . . . . . . . . . . . . . . . . . . . . . . . . . . . . . . . . Dispatch Records 4 | . . 1 . . . . . . . . . . . . . . . . . . . . . . 1 1 . 1 . . . . . . . Maintenance Status 1 | . . . . . . . . . . . . . . . . . . . . . . . . . 1 . . . . . . . . . . Patrol Status 3 | . . . . . . . 1 . . . . . . . . . . . . . . . . . 1 1 . . . . . . . . . Transport Status 1 | . . . . . . . . . . . . . 1 . . . . . . . . . . . . . . . . . . . . . . Investigation Status 2 | . . 2 . . . . . . . . . . . . . . . . . . . . . . . . . . . . . . . . . Recall Investigation 2 | . . . . . . . . . . . . . . . . . . . . . . . . . 1 . . 1 . . . . . . . Recall Extermination 6 | . . . . . . . . . . . . . . . . . . . . . . . . . 2 1 . 1 . . 1 1 . . . Recall Reinforcements 2 | . . . . . . . . . . . . . . . . . . . . . . . . . 1 . . 1 . . . . . . . Recall Assault 2 | . . . . . . . . . . . . . . . . . . . . . . . . . . . . . . 2 . . . . . Hauler Manifests 10 | . . . 2 . . . . . . . 1 . 1 . . . . 2 . . . . . . 1 . . 1 1 . 1 . . . . Registered Components 3 | . 1 . . . . . 1 . . . . . . . . . . . . . . . . . . . . 1 . . . . . . . Registered Prototypes 2 | . . . . . . . . . . . . . . . . . . . . . . . . . . . . 1 . . 1 . . . . Zone Layout 8 | . . 1 1 . . . . 1 . . . . 2 . . . . . . . . 2 . . . 1 . . . . . . . . . Proto ID Catalog 2 | . . . . . . . . . . 1 . . . . . . . . . . . . . . . . . . . . . 1 . . . Gate Test 138-A 1 | . . . . . . . . . . . . . . . . . . . . . . . . . . . . . . . . . . . 1 Gate Test 138-B 1 | . . . . . . . . . . . . . . . . . . . . . . . . . . . . . . . . . . . 1 Gate Test 138-C 1 | . . . . . . . . . . . . . . . . . . . . . . . . . . . . . . . . . . . 1 Gate Test 138-END 1 | . . . . . . . . . . . . . . . . . . . . . . . . . . . . . . . . . . . 1 Fabricator Hacks 42 | . . . . . . . . . . . 2 . 1 . . . . 3 . . . . 6 . 6 5 . 4 . 2 2 8 3 . . Network Status 4 | . . . . . . . . . . . . . 1 . . . . . . . . . 1 . 1 . . . . . . . 1 . . Load Schematic 22 | . . . . . . . . . . . 1 . . . . . . 2 . . . . 3 . 3 3 . 2 . 1 2 4 1 . . Build 16 | . . . . . . . . . . . 1 . . . . . . 1 . . . . 2 . 2 2 . 2 . 1 . 4 1 . . Repair Station Hacks 67 | . 6 . 1 . . . . 9 . . 1 . 4 . . . . 2 . . . . . . 13 1 . 12 6 6 . 6 . . . Scan Component 35 | . 3 . 1 . . . . 5 . . 1 . 2 . . . . 1 . . . . . . 6 1 . 6 3 3 . 3 . . . Repair 31 | . 3 . . . . . . 4 . . . . 2 . . . . 1 . . . . . . 6 . . 6 3 3 . 3 . . . Refit 1 | . . . . . . . . . . . . . . . . . . . . . . . . . 1 . . . . . . . . . . Recycling Unit Hacks 26 | . 1 . 2 . . . 1 2 7 . 6 . 5 . . . . . . . . . 1 . . . . 1 . . . . . . . Retrieve Matter 1 | . . . . . . . . . . . 1 . . . . . . . . . . . . . . . . . . . . . . . . Retrieve Components 25 | . 1 . 2 . . . 1 2 7 . 5 . 5 . . . . . . . . . 1 . . . . 1 . . . . . . . Scanalyzer 51 | . . . 4 . . . 5 . . . 7 . 6 . . . . . . . . . 4 . 2 . . 7 3 4 9 . . . . Insert Component 20 | . . . . . . . . . . . 2 . 1 . . . . . . . . . . . . . . 5 . 4 8 . . . . Analyze 6 | . . . . . . . . . . . 2 . 2 . . . . . . . . . . . . . . 2 . . . . . . . Retrieve Study 25 | . . . 4 . . . 5 . . . 3 . 3 . . . . . . . . . 4 . 2 . . . 3 . 1 . . . . Garrison Access Hacks 13 | . . . . . . . . 1 . . 1 . 1 . . . . 1 . . . 1 1 . 1 . . 1 . 3 1 1 . . . Seal Access 13 | . . . . . . . . 1 . . 1 . 1 . . . . 1 . . . 1 1 . 1 . . 1 . 3 1 1 . . . Unauthorized Hacks 197 | . 3 . 13 . . . 13 7 16 . 14 . 16 . . . . 18 3 . . 13 8 . 17 15 . 10 9 12 2 8 . . . Terminals 136 | . 2 . 10 . . . 13 7 9 . 9 . 7 . . . . 14 3 . . 13 1 . 12 11 . 5 8 9 . 3 . . . Track 6 | . . . . . . . . . . . . . . . . . . 1 . . . 2 . . . 1 . . 1 . . 1 . . . Assimilate 16 | . . . 2 . . . 3 . . . 1 . . . . . . 1 . . . 2 . . 3 1 . . 2 1 . . . . . Botnet 42 | . 1 . 2 . . . 3 2 4 . 3 . 2 . . . . 5 . . . 3 1 . 3 3 . 3 2 3 . 2 . . . Operators 10 | . 1 . 1 . . . 1 . . . . . . . . . . 1 1 . . 1 . . 1 1 . 1 1 . . . . . . Skim 62 | . . . 5 . . . 6 5 5 . 5 . 5 . . . . 6 2 . . 5 . . 5 5 . 1 2 5 . . . . . Fabricators 18 | . . . . . . . . . . . . . 3 . . . . . . . . . 6 . 2 3 . 1 . . 2 1 . . . Prioritize 7 | . . . . . . . . . . . . . . . . . . . . . . . 2 . 1 2 . 1 . . . 1 . . . Fabnet 3 | . . . . . . . . . . . . . 2 . . . . . . . . . . . . . . . . . 1 . . . . Haulers 1 | . . . . . . . . . . . . . . . . . . . . . . . 1 . . . . . . . . . . . . Overload 1 | . . . . . . . . . . . . . 1 . . . . . . . . . . . . . . . . . . . . . . Download 1 | . . . . . . . . . . . . . . . . . . . . . . . 1 . . . . . . . . . . . . Recompile 5 | . . . . . . . . . . . . . . . . . . . . . . . 2 . 1 1 . . . . 1 . . . . Repair Stations 2 | . . . . . . . . . . . . . . . . . . 1 . . . . . . . . . . . 1 . . . . . Mechanics 1 | . . . . . . . . . . . . . . . . . . . . . . . . . . . . . . 1 . . . . . Patch 1 | . . . . . . . . . . . . . . . . . . 1 . . . . . . . . . . . . . . . . . Recycling Units 37 | . 1 . 3 . . . . . 7 . 5 . 5 . . . . 3 . . . . 1 . 3 1 . 3 . 2 . 3 . . . Monitor 1 | . . . 1 . . . . . . . . . . . . . . . . . . . . . . . . . . . . . . . . Recyclers 1 | . . . 1 . . . . . . . . . . . . . . . . . . . . . . . . . . . . . . . . Tunnel 9 | . 1 . 1 . . . . . 7 . . . . . . . . . . . . . . . . . . . . . . . . . . Fedlink 24 | . . . . . . . . . . . 5 . 5 . . . . 3 . . . . 1 . 3 1 . 3 . 2 . 1 . . . Scraphulk 2 | . . . . . . . . . . . . . . . . . . . . . . . . . . . . . . . . 2 . . . Scanalyzers 4 | . . . . . . . . . . . . . 1 . . . . . . . . . . . . . . 1 1 . . 1 . . . Researchers 2 | . . . . . . . . . . . . . . . . . . . . . . . . . . . . . 1 . . 1 . . . Extract 2 | . . . . . . . . . . . . . 1 . . . . . . . . . . . . . . 1 . . . . . . . Garrison Access . | . . . . . . . . . . . . . . . . . . . . . . . . . . . . . . . . . . . . Data Cores Recovered 4 | . . . 1 . . . 1 1 . . . . . . . . . . . . . . . . . . . . . 1 . . . . . Used 2 | . . . 1 . . . 1 . . . . . . . . . . . . . . . . . . . . . . . . . . . . Hacking Detections 196 | . 11 3 12 . . . 9 14 10 . 15 . 23 . . . . 12 3 . . 5 3 . 9 10 . 13 11 14 7 9 3 . . Full Trace Events 26 | . 2 1 1 . . . . . 1 . 1 . 3 . . . . 1 . . . 1 . . 1 2 . 3 2 2 . 4 1 . . Feedback Events 2 | . . . . . . . . . . . . . . . . . . . . . . . . . . 1 . . 1 . . . . . . Hackware Fried 2 | . . . . . . . . . . . . . . . . . . . . . . . . . . 1 . . 1 . . . . . . Feedback Blocked . | . . . . . . . . . . . . . . . . . . . . . . . . . . . . . . . . . . . . Robot Schematics Acquired 16 | . . 1 . . . . . . 1 . . . . . . 5 . . . . . . . . . . . . . . 3 6 . . . Robots Built 8 | . . . . . . . . . . . . . . . . . . . . . . . . . . . . . . . . 8 . . . Authchips . | . . . . . . . . . . . . . . . . . . . . . . . . . . . . . . . . . . . . Time 217 | . . . . . . . . . . . . . . . . . . . . . . . . . . . . . . . . 217 . . . Total Robot Build Rating 56 | . . . . . . . . . . . . . . . . . . . . . . . . . . . . . . . . 56 . . . Part Schematics Acquired 50 | . . . . . . . . 1 5 . 2 . 2 . . 11 . 2 . . . . 1 . 2 . . 5 3 . 3 13 . . . Parts Built 20 | . . . . . . . . . . . 2 . . . . . . 2 . . . . 2 . 4 3 . 4 . 2 . . 1 . . Authchips 5 | . . . . . . . . . . . 1 . . . . . . 1 . . . . 1 . 1 1 . . . . . . . . . Time 669 | . . . . . . . . . . . 42 . . . . . . 47 . . . . 208 . 90 71 . 103 . 58 . . 50 . . Total Part Build Rating 137 | . . . . . . . . . . . 8 . . . . . . 10 . . . . 18 . 26 20 . 36 . 14 . . 5 . . Part Studies Acquired 25 | . . . 4 . . . 5 . . . 3 . 3 . . . . . . . . . 4 . 2 . . . 3 . 1 . . . . Parts Repaired 31 | . 3 . . . . . . 4 . . . . 2 . . . . 1 . . . . . . 6 . . 6 3 3 . 3 . . . Time 1597 | . 78 . . . . . . 128 . . . . 132 . . . . 25 . . . . . . 288 . . 518 73 244 . 111 . . . Parts Recycled . | . . . . . . . . . . . . . . . . . . . . . . . . . . . . . . . . . . . . Recycled Matter . | . . . . . . . . . . . . . . . . . . . . . . . . . . . . . . . . . . . . Retrieved Matter . | . . . . . . . . . . . . . . . . . . . . . . . . . . . . . . . . . . . . Retrieved Components 81 | . 1 . 10 . . . 1 10 25 . 20 . 3 . . . . . . . . . 1 . . . . 10 . . . . . . . Parts Scanalyzed 4 | . . . . . . . . . . . 2 . 1 . . . . . . . . . . . . . . 1 . . . . . . . Part Schematics Acquired 4 | . . . . . . . . . . . 2 . 1 . . . . . . . . . . . . . . 1 . . . . . . . Parts Damaged . | . . . . . . . . . . . . . . . . . . . . . . . . . . . . . . . . . . . . Bothacking | -11 -10 -10 -9 -9 -9 -8 -8 -8 -8 -8 -6 -6 -6 -6 -6 -6 -5 -5 -5 -5 -5 -5 -4 -4 -4 -4 -4 -3 -3 -2 -2 -2 -1 -1 -1 ------------ Run | Yrd Mat Min Mat Min Exi Min Mat Sto Rec Scr Fac Was Fac Low Low Dat Pro Fac Ext Cet Arc Hub Fac Was Fac Arm Lab Res Qua Res Tes Frg Acc Com Ac0 Used RIF Installer . | . . . . . . . . . . . . . . . . . . . . . . . . . . . . . . . . . . . . Robots Hacked 33 | . . . . . 3 . . . 5 13 1 . . . . . 1 2 5 . . 1 . . . 2 . . . . . . . . . Non-combat 10 | . . . . . 2 . . . 3 4 1 . . . . . . . . . . . . . . . . . . . . . . . . Combat 23 | . . . . . 1 . . . 2 9 . . . . . . 1 2 5 . . 1 . . . 2 . . . . . . . . . Robot Hacks Applied 33 | . . . . . 13 . . . 5 14 1 . . . . . . . . . . . . . . . . . . . . . . . . parse_system 32 | . . . . . 13 . . . 5 14 . . . . . . . . . . . . . . . . . . . . . . . . . find_chute 1 | . . . . . . . . . . . 1 . . . . . . . . . . . . . . . . . . . . . . . . Relay Couplers Released 4 | . . . . . . . . . . . . . 2 . . . . . . . . . . . . . . . 2 . . . . . . Machine Destruction 4 | . . . . . . . . . . . . . 2 . . . . . . . . . . . . . . . 2 . . . . . . Fabnet Peak Effective % 6 | . . . . . . . . . . . . . . . . . 6 6 6 6 6 6 2 2 2 2 2 . . . . . . . . Autooverrided 11 | . . . . . . . . . . . . . . . . . 1 2 5 . . 1 . . . 2 . . . . . . . . . Robots Rewired 28 | . . . . . . . . . . . . . . . . . . . 21 . . 1 . . . 3 . . . . . 2 . 1 . Allies Hacked 1 | . . . . . . . . . . . . . . . . . . . . . . . . . . . . . . . . 1 . . . Hacks Repelled . | . . . . . . . . . . . . . . . . . . . . . . . . . . . . . . . . . . . . Allies | -11 -10 -10 -9 -9 -9 -8 -8 -8 -8 -8 -6 -6 -6 -6 -6 -6 -5 -5 -5 -5 -5 -5 -4 -4 -4 -4 -4 -3 -3 -2 -2 -2 -1 -1 -1 -------- Run | Yrd Mat Min Mat Min Exi Min Mat Sto Rec Scr Fac Was Fac Low Low Dat Pro Fac Ext Cet Arc Hub Fac Was Fac Arm Lab Res Qua Res Tes Frg Acc Com Ac0 Total Allies 73 | . . 2 1 . . . 2 10 . . 1 1 . . . . 1 3 26 . . 2 . 1 2 5 . . 2 1 . 12 . 1 . Largest Group 17 | . . 2 2 1 . . 1 10 9 9 1 1 . . . . 1 1 17 8 7 2 . 1 1 4 . . 1 1 . 10 . 1 . Highest-Rated Group 726 | . . 52 52 10 . . 26 173 157 157 26 31 . . . . 29 54 463 185 167 187 . 46 10 191 . . 45 10 . 726 . 119 . Highest-Rated Ally 142 | . . 31 31 10 . . 26 29 29 29 26 31 . . . . 29 54 49 39 39 142 . 46 10 50 . . 45 10 . 139 . 119 . Total Orders 18 | . . . . . . . . 3 3 2 1 . . . . . . . . . 1 . . . 1 1 . . . . . 6 . . . STAY 12 | . . . . . . . . 2 2 1 1 . . . . . . . . . . . . . 1 1 . . . . . 4 . . . FOLLOW 6 | . . . . . . . . 1 1 1 . . . . . . . . . . 1 . . . . . . . . . . 2 . . . Ally Attacks 379 | . . . 26 . . . . 22 6 48 . 7 . . . . 2 8 83 8 7 17 . 3 . 20 . . . . . 118 . 4 . Total Damage 10521 | . . . 357 . . . . 309 93 583 . 106 . . . . 37 274 1894 134 180 419 . 67 . 673 . . . . . 5174 . 221 . Kills 52 | . . . 5 . . . . 3 1 8 . . . . . . . 3 19 2 1 1 . . . 3 . . . . . 5 . 1 . Allies Corrupted 2 | . . . 1 . . . . . . . . . . . . . . . . . . . . . . . . . . . . 1 . . . Allies Melted 4 | . . . . . . . . . . 1 . . . . . . 1 . 1 . . . . . . . . . . . . 1 . . . Intel | -11 -10 -10 -9 -9 -9 -8 -8 -8 -8 -8 -6 -6 -6 -6 -6 -6 -5 -5 -5 -5 -5 -5 -4 -4 -4 -4 -4 -3 -3 -2 -2 -2 -1 -1 -1 ------- Run | Yrd Mat Min Mat Min Exi Min Mat Sto Rec Scr Fac Was Fac Low Low Dat Pro Fac Ext Cet Arc Hub Fac Was Fac Arm Lab Res Qua Res Tes Frg Acc Com Ac0 Active Infowar (turns) 22303 | . 386 793 371 . . . 285 362 . 1768 1181 33 1306 1066 433 187 194 1000 1270 56 48 198 333 97 319 1106 193 446 649 1668 670 5352 379 2 152 Optics 7186 | . . . . . . . . . . . 1077 33 1306 1066 433 187 194 1000 258 . . . . . . 1074 193 295 . . . 70 . . . IFF 2966 | . . . . . . . . . . . . . . . 225 81 193 1000 1270 27 . . 73 97 . . . . . . . . . . . Structural 4709 | . . . . . . . . . . 1052 81 . 66 347 . . . 377 107 . 48 111 64 . 36 . . . 187 1221 450 250 158 2 152 Traps 2 | . . . . . . . . . . . . . . 2 . . . . . . . . . . . . . . . . . . . . . Seismic 4363 | . 386 793 371 . . . 285 362 . . 692 33 859 514 68 . . . . . . . . . . . . . . . . . . . . T.N.C. 7 | . . . . . . . . . . . . . . . . . . 1 . . . . . . . . . . . . . . 6 . . Machine Analysis 742 | . . . . . . . . . . 716 26 . . . . . . . . . . . . . . . . . . . . . . . . Cloaking 8116 | . . . . . . . . . . . . . . . . . . 357 37 29 . 24 196 . 288 259 . 214 284 1652 . 4429 347 . . Jamming 2575 | . . . . . . . . . . . . . . . . . . . . . . . . . . 564 . 37 566 87 452 869 . . . ECM 126 | . . . . . . . . . . . 25 . 13 . 23 . . . . . . 63 . . . . . . . . . 2 . . . Robot Analysis Total 5 | . 2 . . . . . . 1 . . . . . . . . . 1 . . . . . . . . . 1 . . . . . . . Derelict Logs Recovered 4 | . . 1 . 1 . . . . . . . . . 1 . . 1 . . . . . . . . . . . . . . . . . . Drone Launches . | . . . . . . . . . . . . . . . . . . . . . . . . . . . . . . . . . . . . Drone Recoveries . | . . . . . . . . . . . . . . . . . . . . . . . . . . . . . . . . . . . . Exploration | -11 -10 -10 -9 -9 -9 -8 -8 -8 -8 -8 -6 -6 -6 -6 -6 -6 -5 -5 -5 -5 -5 -5 -4 -4 -4 -4 -4 -3 -3 -2 -2 -2 -1 -1 -1 ------------- Run | Yrd Mat Min Mat Min Exi Min Mat Sto Rec Scr Fac Was Fac Low Low Dat Pro Fac Ext Cet Arc Hub Fac Was Fac Arm Lab Res Qua Res Tes Frg Acc Com Ac0 Turns Passed 42376 | 109 1879 793 2145 789 625 467 1179 2401 1340 2594 1193 33 1306 1066 433 187 194 1000 1270 249 307 686 437 97 1155 1157 193 1330 790 1876 1320 7350 1128 1968 1330 Spaces Moved 44163 | 50 963 476 1136 457 375 227 500 1019 1084 2142 1893 91 2193 1062 418 162 273 1143 875 165 239 668 714 141 1462 1307 295 1612 1052 3038 1387 8455 1333 2892 2864 Core 3 | 3 . . . . . . . . . . . . . . . . . . . . . . . . . . . . . . . . . . . Treads 4824 | 47 963 476 1136 457 375 227 500 639 . 4 . . . . . . . . . . . . . . . . . . . . . . . . . Legs 1 | . . . . . . . . . . . . . . 1 . . . . . . . . . . . . . . . . . . . . . Wheels 3034 | . . . . . . . . 380 1084 1570 . . . . . . . . . . . . . . . . . . . . . . . . . Hover 36301 | . . . . . . . . . . 568 1893 91 2193 1061 418 162 273 1143 875 165 239 668 714 141 1462 1307 295 1612 1052 3038 1387 8455 1333 2892 2864 Flight . | . . . . . . . . . . . . . . . . . . . . . . . . . . . . . . . . . . . . Fastest Speed 20 | 50 160 160 160 160 160 160 160 115 115 42 34 34 34 47 66 59 59 53 53 49 49 42 36 36 40 45 42 34 27 27 38 33 33 28 20 Average Speed 60 | 153 160 160 160 160 160 160 182 163 115 96 35 34 37 80 77 63 59 57 56 62 59 49 43 40 46 45 42 40 36 37 40 39 34 35 31 Slowest Speed 410 | 160 160 160 160 160 160 240 200 240 115 410 98 34 102 260 147 66 59 147 121 124 132 113 50 43 152 143 45 148 39 151 135 140 99 104 40 Overloaded Moves 148 | . . . . . . . . . . . . . . . . . . . . . . . . . . . . . 29 119 . . . . . Propulsion Burnouts . | . . . . . . . . . . . . . . . . . . . . . . . . . . . . . . . . . . . . Robots Hopped 1 | . . . . . . . . . . . . . . . . . . . . . . . . . . . . . . . . 1 . . . Potential Cave-ins 3 | . . . . . . . . . . . . . . . . . . . . . . . . . . . . . . . . . . 3 . Cave-ins Triggered . | . . . . . . . . . . . . . . . . . . . . . . . . . . . . . . . . . . . . Teleports 4 | . . . . . . . . . . . . . . . . . . . . . . . . . . . . . . . . . . 1 3 Exploration Rate (%) 68 | 4 97 97 94 97 84 53 54 85 99 91 49 79 57 86 49 82 57 24 82 56 89 49 15 81 33 66 95 34 89 54 95 89 32 74 93 Regions Visited 35 Branch Regions 22 Pre-discovered Areas 23 | . 1 . 3 1 1 . 2 1 9 . 1 . . . . 1 . . . . . . . . 1 1 . . . 1 . . . . . Known Exits Taken 19 | . . 1 . . . 1 1 . . 1 . . 1 1 1 . 1 1 1 . 1 1 . . 1 . 1 1 1 1 . 1 1 . . Unknown Exits Taken 12 | 1 1 . 1 1 1 . . 1 1 . . . . . . 1 . . . 1 . . . . . 1 . . . . 1 . . 1 . Scrap Searched 17 | . . 2 . 1 . 1 . . . 3 . . . 5 2 . 3 . . . . . . . . . . . . . . . . . . Spaces Dug 736 | . 6 . . . . . . 3 . 4 30 . 15 5 5 . 3 20 3 . . 11 3 . 26 24 . 16 14 31 27 96 88 290 16 Terrain Destroyed 4467 | . 6 . 45 . . 19 6 44 . 10 64 . 88 5 5 . 3 20 44 . . 11 3 . 26 83 . 16 15 31 68 1603 216 1983 53 Melee 230 | . . . . . . . . 3 . 4 26 . 13 4 5 . 3 9 3 . . 9 3 . 22 20 . 16 13 31 10 11 10 . 15 Projectile 85 | . . . . . . . . . . . 8 . 8 1 . . . . . . . 2 . . 4 11 . . 2 . 2 19 16 12 . AOE 3830 | . 6 . 45 . . 19 6 41 . 6 30 . 67 . . . . 11 41 . . . . . . 52 . . . . 56 1341 138 1971 . Terrain Rammed . | . . . . . . . . . . . . . . . . . . . . . . . . . . . . . . . . . . . . Walls Destroyed . | . . . . . . . . . . . . . . . . . . . . . . . . . . . . . . . . . . . . Machines Disabled . | . . . . . . . . . . . . . . . . . . . . . . . . . . . . . . . . . . . . Actions | -11 -10 -10 -9 -9 -9 -8 -8 -8 -8 -8 -6 -6 -6 -6 -6 -6 -5 -5 -5 -5 -5 -5 -4 -4 -4 -4 -4 -3 -3 -2 -2 -2 -1 -1 -1 --------- Run | Yrd Mat Min Mat Min Exi Min Mat Sto Rec Scr Fac Was Fac Low Low Dat Pro Fac Ext Cet Arc Hub Fac Was Fac Arm Lab Res Qua Res Tes Frg Acc Com Ac0 Total 56801 | 67 1182 494 1356 494 394 286 676 1536 1161 2659 2267 92 2563 1218 501 221 295 1415 1556 300 358 918 822 182 1843 1728 355 2203 1388 3678 2081 11752 1790 3732 3238 Wait 6763 | 1 109 5 76 14 . 19 90 304 33 435 162 . 155 41 49 27 11 144 348 111 71 124 42 36 226 199 24 419 201 367 475 1901 114 389 41 Move 44125 | 50 962 475 1135 456 374 226 499 1018 1083 2141 1893 90 2192 1061 417 161 272 1142 874 164 238 667 714 140 1461 1306 294 1611 1051 3037 1386 8449 1332 2891 2863 Hop 1 | . . . . . . . . . . . . . . . . . . . . . . . . . . . . . . . . 1 . . . Pick Up 402 | 3 19 . 25 4 . 3 10 17 3 10 17 1 21 15 2 1 2 11 5 1 1 7 8 2 15 11 6 14 10 22 13 82 7 24 10 Fast Attach 306 | 6 1 . 6 1 . 4 2 17 6 8 7 . 11 2 3 1 . 6 8 3 9 10 9 1 15 19 7 13 7 14 13 57 8 22 10 Attach 395 | . 5 . 6 . . 1 3 6 2 5 16 . 9 11 2 . . 11 3 6 2 2 6 . 10 7 2 7 7 11 10 164 27 35 19 Detach 338 | . 1 . 2 . 1 . 1 4 4 3 9 . 9 4 2 . . 8 5 5 3 . 3 . 6 8 3 3 2 5 9 163 27 33 15 Swap 606 | . 9 1 16 4 4 8 12 25 9 7 31 . 38 10 3 2 1 11 16 . 1 14 7 . 17 24 . 18 28 36 35 109 38 53 19 Drop 527 | . 5 . 35 4 2 4 12 26 8 22 16 1 29 9 2 1 2 11 14 1 1 13 18 3 15 27 12 23 7 27 22 106 8 26 15 Fire 1163 | 6 64 4 54 9 . 21 44 82 5 2 51 . 54 2 . . . 15 10 9 8 2 . . 10 25 . 4 7 8 8 415 120 101 23 Melee 1733 | . . . . . 13 . . 17 6 25 65 . 45 61 20 28 7 56 57 . 24 73 15 . 60 87 7 78 68 138 109 227 81 152 214 Ram . | . . . . . . . . . . . . . . . . . . . . . . . . . . . . . . . . . . . . Kick . | . . . . . . . . . . . . . . . . . . . . . . . . . . . . . . . . . . . . Crush 27 | 1 7 9 1 2 . . 3 4 . . . . . . . . . . . . . . . . . . . . . . . . . . . Escape Stasis 123 | . . . . . . . . . . . . . . . . . . . . . . . . . 8 . . 13 . 13 . 61 28 . . Rewire 255 | . . . . . . . . . . . . . . . . . . . 216 . . 1 . . . 15 . . . . 1 7 . 6 9 Trap 3 | . . . . . . . . . . 1 . . . 2 . . . . . . . . . . . . . . . . . . . . . Miscellaneous 34 | . . . . . . . . 16 2 . . . . . 1 . . . . . . 5 . . . . . . . . . 10 . . . Route ------- -11/Scrapyard -10/Materials (discovered 5 exits: *Mat x3 / *Min / [*Sub]) -10/Mines (discovered 2 exits: *Mat x2) -9/Materials (discovered 4 exits: *Mat x3 / [*Min]) -9/Mines (discovered 4 exits: *Mat x2 / *Exi / [*Zio]) -9/Exiles -8/Mines (discovered 2 exits: *Mat x2) -8/Materials (discovered 3 exits: *Fac / *Sto x2) -8/Storage (discovered 2 exits: Fac / *Rec) -8/Recycling (discovered 2 exits: *Fac / *Scr) -8/Scraptown (discovered 2 exits: *Fac x2) -6/Factory (discovered 4 exits: *Fac x3 / Low) -6/Waste -6/Factory (discovered 2 exits: *Low x2) -6/Lower Caves -6/Lower Caves (discovered 2 exits: *Fac / *Dat) -6/Data Miner -5/Proximity Caves -5/Factory (discovered 3 exits: Fac / *Ext x2) -5/Extension (discovered 3 exits: *Fac x2 / *Cet) -5/Cetus (discovered 2 exits: *Fac / [*Arc]) -5/Archives (discovered 3 exits: *Fac / *Hub x2) -5/Hub_04(d) -4/Factory (discovered 2 exits: Res / Arm) -4/Waste -4/Factory (discovered 6 exits: *Res x3 / *Upp x2 / *Arm) -4/Armory (discovered 3 exits: Res x2 / [*Lab]) -4/Lab -3/Research (discovered 3 exits: *Res / *Qua x2) -3/Quarantine -2/Research (discovered 5 exits: *Acc x3 / *Tes x2) -2/Testing (discovered 3 exits: *Acc / *Sec / *Frg) -2/Protoforge -1/Access -1/Command (discovered 3 exits: [*Sur x2] / *Ac0) -1/Access_0 0b11 Command History --------- Turn | Location | Event 6 | -11/Scrapyard | Discovered new exit (range 14) 110 | -11/Scrapyard | Entered Materials 301 | -10/Materials | Build established: Mutant 551 | -10/Materials | Discovered new exit (range 6) 638 | -10/Materials | Discovered new exit (range 10) 922 | -10/Materials | Repaired Lgt. Treads 949 | -10/Materials | Repaired Lgt. Assault Rifle 988 | -10/Materials | Repaired Lgt. Treads 1026 | -10/Materials | Central database locked down 1059 | -10/Materials | Discovered new exit (range 7) 1223 | -10/Materials | Discovered new exit (range 10) 1276 | -10/Materials | Build established: Scavenger-Mutant 1821 | -10/Materials | Discovered new exit (range 12) 1989 | -10/Materials | Entered Mines 2137 | -10/Mines | Learned 4 Materials zone layouts 2180 | -10/Mines | Central database locked down 2381 | -10/Mines | Discovered new exit (range 14) 2499 | -10/Mines | Discovered new exit (range 9) 2527 | -10/Mines | Identified exit to Materials 2782 | -10/Mines | Entered Materials 2782 | -9/Materials | Accompanied by 2 allies 2782 | -9/Materials | Evolved 2 slots: Propulsion x1, Weapon x1 2783 | -9/Materials | Identified exit to Materials 2787 | -9/Materials | Led the pair of lost Derelicts to an unsafe place 3202 | -9/Materials | Discovered exit to Materials (range 10) 3362 | -9/Materials | Discovered new exit (range 7) 3529 | -9/Materials | Build established: Gunner 4392 | -9/Materials | Central database locked down 4466 | -9/Materials | Discovered exit to Materials (range 7) 4519 | -9/Materials | Learned location of Recycling (-8) 4572 | -9/Materials | Learned 2 Storage zone layouts 4613 | -9/Materials | Learned Storage trap positions 4645 | -9/Materials | Loaded intel: 2 recycling unit locations 4669 | -9/Materials | Loaded intel: 8 trap records 4683 | -9/Materials | Loaded intel: 51 non-interactive machine locations 4927 | -9/Materials | Entered Mines 4927 | -9/Mines | Accompanied by 1 ally 4936 | -9/Mines | A Derelict revealed a hidden shortcut to a safe place 5228 | -9/Mines | Joined a pair of Derelicts in attacking an 0b10 outpost 5558 | -9/Mines | Deemed a non-threat by the Exiles lab entrance 5585 | -9/Mines | Learned location of Storage (-8) 5606 | -9/Mines | Received a Rocket Launcher from a helpful Derelict 5708 | -9/Mines | Discovered new exit (range 5) 5716 | -9/Mines | Entered Exiles 5760 | -9/Exiles | Met 8R-AWN 5787 | -9/Exiles | Met EX-HEX 5882 | -9/Exiles | Met EX-DEC 5915 | -9/Exiles | Visited The Gauntlet 6026 | -9/Exiles | Build established: Mutant 6118 | -9/Exiles | Learned location of Zion (-7) 6155 | -9/Exiles | Met EX-BIN 6329 | -9/Exiles | Discovered new exit (range 10) 6341 | -9/Exiles | Entered Mines 6630 | -8/Mines | Build established: Gunner 6808 | -8/Mines | Entered Materials 6808 | -8/Materials | Evolved 2 slots: Utility x2 7119 | -8/Materials | Identified exit to Storage 7167 | -8/Materials | Learned Factory trap positions 7204 | -8/Materials | Learned Storage trap positions 7231 | -8/Materials | Learned Factory repair station intel 7248 | -8/Materials | Learned Storage security intel 7253 | -8/Materials | Learned location of 1 exit from Lower Caves 7254 | -8/Materials | Learned location of Lower Caves (-6) 7256 | -8/Materials | Learned Storage terminal intel 7263 | -8/Materials | Learned Storage trap positions 7278 | -8/Materials | Build established: Tank 7280 | -8/Materials | Learned Factory security intel 7637 | -8/Materials | Discovered new exit (range 16) 7987 | -8/Materials | Entered Storage 7987 | -8/Storage | Accompanied by 1 ally 7988 | -8/Storage | Identified exit to Factory 7989 | -8/Storage | Loaded intel: 20 trap records 7991 | -8/Storage | Loaded intel: 14 terminal locations 8240 | -8/Storage | Repaired Lgt. EM Pulse Cannon+ 8283 | -8/Storage | Repaired Lgt. EM Pulse Cannon+? 8360 | -8/Storage | Repaired Imp. Treads+ 8394 | -8/Storage | Repaired Lgt. EM Pulse Cannon+ 8529 | -8/Storage | Discovered new exit (range 11) 8701 | -8/Storage | Learned location of 1 exit from Extension 8752 | -8/Storage | Garrison activated, responded to threat 8778 | -8/Storage | Learned 12 Factory zone layouts 8846 | -8/Storage | Learned 4 Factory zone layouts 8903 | -8/Storage | Learned 4 Factory zone layouts 9007 | -8/Storage | Learned location of 1 exit from Lower Caves 9074 | -8/Storage | Learned location of 1 exit from Extension 9399 | -8/Storage | Learned location of Armory (-4) 9569 | -8/Storage | Build established: Hacker-Tank 9587 | -8/Storage | First assault squad dispatched 9853 | -8/Storage | Destroyed 9 combat bots 9857 | -8/Storage | Lost 5 parts (1n2u2w) 10129 | -8/Storage | Assisted by bots powering up and referring to "LRC-V3" 10374 | -8/Storage | Used back door to open Recycling access 10388 | -8/Storage | Entered Recycling 10388 | -8/Recycling | Accompanied by 9 allies 10389 | -8/Recycling | Identified exit to Factory 10576 | -8/Recycling | Build established: Commander-Tank 11354 | -8/Recycling | Learned Storage emergency access door positions 11403 | -8/Recycling | Learned Storage terminal intel 11430 | -8/Recycling | Build established: Commander-Mutant 11441 | -8/Recycling | Learned location of 1 exit from Extension 11561 | -8/Recycling | Learned Factory stockpile data 11673 | -8/Recycling | Scanned before Scraplab entrance 11690 | -8/Recycling | Entered Scraplab 11702 | -8/Recycling | Discovered new exit (range 3) 11728 | -8/Recycling | Entered Scraptown 11728 | -8/Scraptown | Accompanied by 9 allies 11728 | -8/Scraptown | System corruption cleaned by C-Scrubber 11899 | -8/Scraptown | Heard Great Nut preacher, LISTEN AND RECITE! 12021 | -8/Scraptown | Visited SPCMW 12037 | -8/Scraptown | Visited Cyclists 12137 | -8/Scraptown | Visited Red Mages 12176 | -8/Scraptown | Visited Science Testing Area 12449 | -8/Scraptown | Visited Shadow of the Wyrm 12456 | -8/Scraptown | Visited The Evicted 12478 | -8/Scraptown | Visited TADAMA 12502 | -8/Scraptown | Visited UFD Registry 12502 | -8/Scraptown | Registered with UFD as "Technoboard" 12529 | -8/Scraptown | Visited Curators Association 12610 | -8/Scraptown | Visited Junk Repository 12646 | -8/Scraptown | Visited Chapter 10 12667 | -8/Scraptown | Visited Sword Containment 12685 | -8/Scraptown | Visited Scrap Suit Storage 12698 | -8/Scraptown | Visited Scrapoid Pod Storage 12714 | -8/Scraptown | Visited Derelict Rescue Squad 12863 | -8/Scraptown | Visited Supply Room 12890 | -8/Scraptown | Visited Science Guys 12992 | -8/Scraptown | Found Prototype Slashing Weapon 12992 | -8/Scraptown | Identified Companion Sword 13228 | -8/Scraptown | Entered Cyclist Reading Room 13464 | -8/Scraptown | Found DRS Beacon 13670 | -8/Scraptown | Warned about trapping Scraptown 13808 | -8/Scraptown | Met Optimus 13808 | -8/Scraptown | Accepted into 0bPrime 14208 | -8/Scraptown | Civil war broke out across Scraptown 14300 | -8/Scraptown | Lost 3 allies 14322 | -8/Scraptown | Entered Factory 14322 | -6/Factory | Evolved 4 slots: Power x1, Propulsion x2, Utility x1 14323 | -6/Factory | Identified exit to Factory 14324 | -6/Factory | Identified exit to Lower Caves 14325 | -6/Factory | Loaded intel: 88 trap records 14328 | -6/Factory | Loaded intel: 6 repair station locations 14346 | -6/Factory | Lost 3 allies 14421 | -6/Factory | Fabricated Adv. ECM Suite (x2) 14590 | -6/Factory | Spotted B-75 Beast 14625 | -6/Factory | Build established: Hacker-Mutant 14848 | -6/Factory | Central database locked down 14947 | -6/Factory | Loaded intel: 8 recycling unit locations 14989 | -6/Factory | Learned location of Protoforge (-2) 15279 | -6/Factory | Build established: Mutant 15330 | -6/Factory | Learned location of 1 exit from Cetus 15369 | -6/Factory | Learned location of 1 exit from Upper Caves 15372 | -6/Factory | First assault squad dispatched 15399 | -6/Factory | Learned 2 Proximity Caves zone layouts 15419 | -6/Factory | Learned location of 2 exits from Lower Caves 15430 | -6/Factory | Learned Hub_04(d) emergency access door positions 15458 | -6/Factory | Learned Extension emergency access door positions 15486 | -6/Factory | Learned location of 1 exit from Upper Caves 15515 | -6/Factory | Sucked down chute 15515 | -6/Factory | Entered Waste 15516 | -6/Waste | Met a frightened Derelict 15521 | -6/Waste | Spotted C-40 Crusher 15524 | -6/Waste | Spotted C-40 Crusher 15524 | -6/Waste | Spotted C-40 Crusher 15528 | -6/Waste | Spotted C-40 Crusher 15530 | -6/Waste | EMP discharged 15530 | -6/Waste | System corruption reached 10% 15533 | -6/Waste | Spotted C-40 Crusher 15537 | -6/Waste | Spotted C-40 Crusher 15537 | -6/Waste | Discovered new exit (range 13) 15548 | -6/Waste | Entered Factory 15552 | -6/Factory | Loaded intel: 8 recycling unit locations 15783 | -6/Factory | Repaired Nanoactuators 15854 | -6/Factory | Repaired Imp. Airjet 16598 | -6/Factory | First assault squad dispatched 16657 | -6/Factory | Noticed a derelict Sapper rigging charges 16672 | -6/Factory | Learned location of 2 exits from Archives 16713 | -6/Factory | Learned location of 1 exit from Upper Caves 16744 | -6/Factory | Learned 4 Extension zone layouts 16764 | -6/Factory | Learned Extension garrison access intel 16773 | -6/Factory | Build established: Hacker-Mutant 16821 | -6/Factory | Learned location of 1 exit from Proximity Caves 16854 | -6/Factory | Entered Lower Caves 16855 | -6/Lower Caves | Identified exit to Lower Caves 16872 | -6/Lower Caves | Attracted the attention of an 0b10 checkpoint 16905 | -6/Lower Caves | Core integrity fell below 50% 16928 | -6/Lower Caves | Learned Factory terminal intel 17001 | -6/Lower Caves | Lost 5 parts (2p3n) 17073 | -6/Lower Caves | Entered an active Warlord outpost 17093 | -6/Lower Caves | Learned Extension trap positions 17093 | -6/Lower Caves | Learned Armory emergency access door positions 17093 | -6/Lower Caves | Learned Factory security intel 17093 | -6/Lower Caves | Learned Factory garrison access intel 17093 | -6/Lower Caves | Learned Extension garrison access intel 17183 | -6/Lower Caves | Build established: Mutant 17655 | -6/Lower Caves | Ambushed by wild Derelicts 17920 | -6/Lower Caves | Entered another Lower Caves area 17922 | -6/Lower Caves | Identified exit to Data Miner 17989 | -6/Lower Caves | Attracted the attention of an 0b10 checkpoint 17989 | -6/Lower Caves | Core integrity fell below 20% 18006 | -6/Lower Caves | Activated DRS Beacon 18342 | -6/Lower Caves | Encountered a Warlord checkpoint 18353 | -6/Lower Caves | Entered Data Miner 18353 | -6/Data Miner | Discovered new exit (range 7) 18363 | -6/Data Miner | Met Data Miner 18387 | -6/Data Miner | Learned location of Section 7 (-2) 18387 | -6/Data Miner | Acquired the access code to Warlord's prototype stash 18391 | -6/Data Miner | Received God Mode back door access code from Data Miner 18422 | -6/Data Miner | Destroyed Data Miner 18427 | -6/Data Miner | Found Prototype Hackware 18428 | -6/Data Miner | Data Conduit disabled 18540 | -6/Data Miner | Entered Proximity Caves 18671 | -5/Proximity Caves | Learned location of 1 exit from Upper Caves 18675 | -5/Proximity Caves | Attracted the attention of an 0b10 base 18716 | -5/Proximity Caves | Build established: Scavenger-Mutant 18734 | -5/Proximity Caves | Entered Factory 18734 | -5/Factory | Evolved 2 slots: Utility x2 18734 | -5/Factory | Identified Ghost Barrier 18735 | -5/Factory | Identified exit to Factory 18735 | -5/Factory | Identified exit to Extension 18737 | -5/Factory | Loaded intel: 26 terminal locations 18738 | -5/Factory | Loaded intel: 4 garrison access locations 18874 | -5/Factory | Discovered exit to Extension (range 18) 19132 | -5/Factory | Loaded intel: 8 recycling unit locations 19179 | -5/Factory | Learned location of 1 exit from Upper Caves 19343 | -5/Factory | Learned location of 1 exit from Upper Caves 19344 | -5/Factory | Repaired Cmb. Airjet+? 19381 | -5/Factory | Learned 12 Research zone layouts 19429 | -5/Factory | Learned 12 Factory zone layouts 19459 | -5/Factory | Loaded intel: 90 trap records 19462 | -5/Factory | Fabricated Weapon Mount (x2) 19498 | -5/Factory | Learned Factory trap positions 19546 | -5/Factory | Learned Quarantine stockpile data 19734 | -5/Factory | Entered Extension 19736 | -5/Extension | Identified exit to Cetus 19738 | -5/Extension | Loaded intel: 18 trap records 19972 | -5/Extension | Energy Cycler disabled 19972 | -5/Extension | Rescued a captive Derelict 19973 | -5/Extension | Rescued a captive Derelict 19974 | -5/Extension | Rescued a captive Derelict 19976 | -5/Extension | Rescued a captive Derelict 19984 | -5/Extension | Rescued a captive Derelict 20538 | -5/Extension | Extracted ID and sensor layout for unrecognized location from A7's data core 20556 | -5/Extension | Unchained authorized (6S-H0T) 20618 | -5/Extension | Build established: Commander-Mutant 20934 | -5/Extension | First assault squad dispatched 20976 | -5/Extension | Lost 4 allies 21004 | -5/Extension | Entered Cetus 21004 | -5/Cetus | Accompanied by 8 allies 21024 | -5/Cetus | Lost 5 allies 21029 | -5/Cetus | Spotted Cetus Guard 21030 | -5/Cetus | Spotted Cetus Guard 21035 | -5/Cetus | Spotted Cetus Guard 21039 | -5/Cetus | Destroyed Cetus Guard 21039 | -5/Cetus | Destroyed Cetus Guard 21040 | -5/Cetus | Destroyed Cetus Guard 21040 | -5/Cetus | Spotted Cetus Guard 21041 | -5/Cetus | Destroyed Cetus Guard 21127 | -5/Cetus | Discovered new exit (range 15) 21142 | -5/Cetus | Spotted Cetus Guard 21142 | -5/Cetus | Spotted Cetus Guard 21149 | -5/Cetus | Spotted Cetus Guard 21149 | -5/Cetus | Spotted Cetus Guard 21156 | -5/Cetus | Destroyed Cetus Guard 21158 | -5/Cetus | Allies destroyed Cetus Guard 21159 | -5/Cetus | Destroyed Cetus Guard 21168 | -5/Cetus | Allies destroyed Cetus Guard 21176 | -5/Cetus | Met Revision 17 21181 | -5/Cetus | System corruption reached 10% 21253 | -5/Cetus | Entered Archives 21253 | -5/Archives | Accompanied by 7 allies 21254 | -5/Archives | Identified exit to Hub_04(d) 21347 | -5/Archives | Lost 5 allies 21366 | -5/Archives | Lost 3 parts (2n1u) 21560 | -5/Archives | Entered Hub_04(d) 21560 | -5/Hub_04(d) | Accompanied by 2 allies 21561 | -5/Hub_04(d) | Forged Quantum Companion 21657 | -5/Hub_04(d) | Build established: Scavenger-Mutant 21809 | -5/Hub_04(d) | Core integrity fell below 50% 21950 | -5/Hub_04(d) | Discovered exit to Factory (range 11) 21980 | -5/Hub_04(d) | Build established: Hacker-Mutant 22010 | -5/Hub_04(d) | Lost 3 parts (1p1n1w) 22180 | -5/Hub_04(d) | Network Hub disabled 22246 | -5/Hub_04(d) | Entered Factory 22246 | -4/Factory | Evolved 2 slots: Propulsion x1, Utility x1 22247 | -4/Factory | Identified exit to Armory 22247 | -4/Factory | Identified exit to Research 22248 | -4/Factory | Loaded intel: 89 trap records 22422 | -4/Factory | Loaded intel: 8 recycling unit locations 22571 | -4/Factory | Fabricated Cmb. Linear Gravjet (x2) 22590 | -4/Factory | Central database locked down 22683 | -4/Factory | Sucked down chute 22683 | -4/Factory | Entered Waste 22684 | -4/Waste | Met a frightened Derelict 22686 | -4/Waste | Spotted C-40 Crusher 22691 | -4/Waste | Spotted C-40 Crusher 22696 | -4/Waste | Spotted C-40 Crusher 22706 | -4/Waste | Crushed by Compactor (1 part destroyed, 2 dropped) 22715 | -4/Waste | Spotted C-40 Crusher 22751 | -4/Waste | Discovered new exit (range 13) 22780 | -4/Waste | Entered Factory 22868 | -4/Factory | Identified exit to Upper Caves 22923 | -4/Factory | Fabricated Cmb. Linear Gravjet (x2) 22948 | -4/Factory | Fabricated Core Analyzer (x2) 23051 | -4/Factory | Repaired Cmb. Linear Gravjet? 23090 | -4/Factory | Repaired Weapon Mount 23146 | -4/Factory | Loaded intel: 8 recycling unit locations 23446 | -4/Factory | Learned Testing scanalyzer intel 23544 | -4/Factory | Repaired Neutrino Core+ 23563 | -4/Factory | Learned 4 Proximity Caves zone layouts 23569 | -4/Factory | Discovered exit to Research (range 10) 23610 | -4/Factory | Learned location of Warlord (-4) 23621 | -4/Factory | Repaired Cmb. Linear Gravjet 23646 | -4/Factory | Learned 2 Proximity Caves zone layouts 23697 | -4/Factory | Repaired Adv. Cloaking Device 23869 | -4/Factory | Repaired Imp. Medium Armor Plating? 23935 | -4/Factory | Entered Armory 24117 | -4/Armory | Destroyed 8 combat bots 24463 | -4/Armory | Fabricated Adv. Transmission Jammer (x2) 24596 | -4/Armory | Ghost Barrier fried by hacking feedback 24616 | -4/Armory | Fabricated Exp. Heat Sink? 24762 | -4/Armory | Build established: Machinist-Mutant 24895 | -4/Armory | Learned location of 1 exit from Testing 24923 | -4/Armory | Learned Factory emergency access door positions 24953 | -4/Armory | Learned Factory emergency access door positions 24964 | -4/Armory | Learned 4 Factory zone layouts 24997 | -4/Armory | Found Unknown Device 24997 | -4/Armory | Identified Adv. Force Booster 25040 | -4/Armory | Discovered new exit (range 4) 25070 | -4/Armory | Loaded intel: 2 recycling unit locations 25092 | -4/Armory | Entered Lab 25093 | -4/Lab | Discovered exit to Research (range 9) 25098 | -4/Lab | Hidden lab's door opened automatically 25098 | -4/Lab | Sensor layout match revealed 25099 | -4/Lab | Gained access to the hidden lab's interior 25130 | -4/Lab | Found Alien Artifact 25130 | -4/Lab | Identified Core Expander 25130 | -4/Lab | Installed Core Expander, added new Propulsion slot 25138 | -4/Lab | Found Alien Artifact 25138 | -4/Lab | Identified Integrated Mediator 25138 | -4/Lab | Installed Integrated Mediator, increased core attachment efficiency 25144 | -4/Lab | Found Alien Artifact 25160 | -4/Lab | Found Prototype Energy Cannon 25160 | -4/Lab | Identified Warp Cannon 25167 | -4/Lab | Found Prototype Protection 25167 | -4/Lab | Identified Hvy. Regenerative Plating 25239 | -4/Lab | Found Prototype Hackware 25285 | -4/Lab | Entered Research 25285 | -3/Research | Evolved 2 slots: Utility x2 25286 | -3/Research | Identified exit to Quarantine 25286 | -3/Research | Identified exit to Research 25440 | -3/Research | Spotted B-86 Titan 25485 | -3/Research | Revision forces began assault on 0b10 25495 | -3/Research | Met up with Revision 17++ 25547 | -3/Research | Loaded intel: 5 recycling unit locations 25568 | -3/Research | Spotted B-86 Titan 25582 | -3/Research | Identified Deep Network Scanner 25700 | -3/Research | Central database locked down 25787 | -3/Research | Identified Transdimensional Reconstructor 25811 | -3/Research | Spotted B-86 Titan 25826 | -3/Research | Destroyed B-86 Titan 25862 | -3/Research | Build established: Hacker-Mutant 25985 | -3/Research | Research terminal network offline 26102 | -3/Research | Repaired Cmb. Linear Gravjet 26200 | -3/Research | Fabricated Cmb. Linear Gravjet (x2) 26204 | -3/Research | Repaired Plasma Lance? 26208 | -3/Research | Fabricated Cmb. Linear Gravjet? 26306 | -3/Research | Repaired Lgt. Quantum Reactor 26420 | -3/Research | Repaired Cld. Antigrav System 26496 | -3/Research | Repaired Lgt. Quantum Reactor 26590 | -3/Research | Repaired Exp. Heat Sink 26615 | -3/Research | Entered Quarantine 26630 | -3/Quarantine | Found Alien Artifact 26635 | -3/Quarantine | Found Alien Artifact 26781 | -3/Quarantine | Unchained authorized (CL-0N3) 26819 | -3/Quarantine | Deep Network Scanner fried by hacking feedback 26849 | -3/Quarantine | Repaired Plasma Lance? 26964 | -3/Quarantine | W-44 Eye reconstituted as Alpha 7 26964 | -3/Quarantine | Spotted Alpha 7 26983 | -3/Quarantine | Found Alien Artifact 26984 | -3/Quarantine | Identified Subatomic Replicator 26984 | -3/Quarantine | Forged Prototype Slashing Weapon 27025 | -3/Quarantine | Destroyed Alpha 7 27025 | -3/Quarantine | Alpha 7 reconstituted as CL-0N3 27103 | -3/Quarantine | Repaired Weapon Mount 27128 | -3/Quarantine | Repaired Lgt. Quantum Reactor+ 27287 | -3/Quarantine | W-44 Eye reconstituted as Armor Guard 27292 | -3/Quarantine | Spotted Armor Guard 27293 | -3/Quarantine | Destroyed Armor Guard 27293 | -3/Quarantine | Armor Guard reconstituted as CL-0N3 27343 | -3/Quarantine | Discovered exit to Research (range 3) 27343 | -3/Quarantine | Cryocooling Duct disabled 27346 | -3/Quarantine | Cryocooling Duct disabled 27358 | -3/Quarantine | Ambient heat levels rising (+20) 27358 | -3/Quarantine | Non-combat units ordered to evacuate 27361 | -3/Quarantine | Ambient heat levels rising (+20) 27361 | -3/Quarantine | Combat units ordered to evacuate 27405 | -3/Quarantine | Entered Research 27405 | -2/Research | Evolved 2 slots: Power x1, Utility x1 27501 | -2/Research | Repaired Nanoactuators 27580 | -2/Research | Unchained authorized (CL-0N3) 27610 | -2/Research | Repaired Cld. Antigrav System 27640 | -2/Research | Discovered new exit (range 12) 27651 | -2/Research | Build established: Machinist-Mutant 27685 | -2/Research | Repaired Cmb. Linear Gravjet+ 27922 | -2/Research | Found Prototype Processor 27988 | -2/Research | Loaded intel: 5 recycling unit locations 28052 | -2/Research | U-05 Engineer reconstituted as S7 Guard 28052 | -2/Research | Spotted S7 Guard 28070 | -2/Research | Destroyed S7 Guard 28070 | -2/Research | S7 Guard reconstituted as CL-0N3 28121 | -2/Research | Identified Spectral Analyzer 28148 | -2/Research | Found Prototype Device 28151 | -2/Research | Identified Exp. Phase Shifter 28277 | -2/Research | Spotted B-90 Cyclops 28317 | -2/Research | Destroyed 8 combat bots 28383 | -2/Research | K-01 Serf reconstituted as S7 Guard 28383 | -2/Research | Spotted S7 Guard 28405 | -2/Research | Destroyed S7 Guard 28405 | -2/Research | S7 Guard reconstituted as CL-0N3 28596 | -2/Research | Spotted B-90 Cyclops 28650 | -2/Research | Identified exit to Testing 28655 | -2/Research | First assault squad dispatched 28662 | -2/Research | Discovered new exit (range 16) 28765 | -2/Research | Spotted B-90 Cyclops 28879 | -2/Research | Loaded intel: 82 trap records 28905 | -2/Research | Found Exp. Terrain Scan Processor 28966 | -2/Research | U-05 Engineer reconstituted as Access Guard 28992 | -2/Research | Fabricated Adv. Transmission Jammer (x2) 29017 | -2/Research | Build established: Hacker-Mutant 29036 | -2/Research | Identified exit to Access 29089 | -2/Research | Learned Access emergency access door positions 29122 | -2/Research | Learned location of 1 exit from Research 29163 | -2/Research | Loaded intel: 22 terminal locations 29164 | -2/Research | U-05 Engineer reconstituted as V2 29164 | -2/Research | Spotted V2 29193 | -2/Research | Destroyed V2 29193 | -2/Research | V2 reconstituted as CL-0N3 29281 | -2/Research | Entered Testing 29282 | -2/Testing | Identified exit to Section 7 29283 | -2/Testing | Loaded intel: 3 scanalyzer locations 29301 | -2/Testing | Found Prototype Device 29301 | -2/Testing | Identified 2N-1CE's Frost Array 29335 | -2/Testing | Found Prototype Launcher 29358 | -2/Testing | Found Ghost Barrier 29378 | -2/Testing | Spotted Striker 29380 | -2/Testing | Spotted Striker 29424 | -2/Testing | Found Prototype Processor 29480 | -2/Testing | Identified Exp. Signal Interpreter 29502 | -2/Testing | Found Prototype Hackware 29531 | -2/Testing | First assault squad dispatched 29533 | -2/Testing | Identified Exp. Hacking Suite 29533 | -2/Testing | Identified Point Singularity Launcher 29675 | -2/Testing | Found Prototype Device 29675 | -2/Testing | Identified Exp. Hardlight Generator 29693 | -2/Testing | Found Prototype Device 29697 | -2/Testing | Found Prototype Device 29705 | -2/Testing | Identified Exp. Shock Absorption System 29705 | -2/Testing | Identified Exp. EM Shield 29871 | -2/Testing | Found Prototype Energy Cannon 29871 | -2/Testing | Identified Hpw. Disruptor Cannon 30005 | -2/Testing | Found Prototype Ballistic Cannon 30007 | -2/Testing | Discovered exit to Access (range 13) 30105 | -2/Testing | Found Prototype Launcher 30127 | -2/Testing | Identified Perforator 30127 | -2/Testing | Identified Mni. Smartbomb Launcher 30137 | -2/Testing | Unchained authorized (6S-H0T) 30377 | -2/Testing | Found Prototype Hackware 30377 | -2/Testing | Identified System Mapper 30396 | -2/Testing | Spotted Fortress 30421 | -2/Testing | Discovered new exit (range 14) 30601 | -2/Testing | Entered Protoforge 30601 | -2/Protoforge | Spotted B-90 Cyclops 30659 | -2/Protoforge | Spotted Hotshot 30660 | -2/Protoforge | Spotted Hotshot 30722 | -2/Protoforge | Destroyed Hotshot 30734 | -2/Protoforge | Destroyed Hotshot 30774 | -2/Protoforge | Superfortress began startup sequence 30836 | -2/Protoforge | Repaired Cmb. Linear Gravjet+ 30874 | -2/Protoforge | Repaired Cmb. Linear Gravjet+ 30913 | -2/Protoforge | Repaired Cmb. Linear Gravjet+ 30922 | -2/Protoforge | Discovered exit to Access (range 13) 31034 | -2/Protoforge | Spotted Hotshot 31034 | -2/Protoforge | Spotted Hotshot 31036 | -2/Protoforge | Spotted Hotshot 31042 | -2/Protoforge | Spotted Hotshot 31043 | -2/Protoforge | Destroyed Hotshot 31046 | -2/Protoforge | Destroyed Hotshot 31065 | -2/Protoforge | Rewired Hotshot 31125 | -2/Protoforge | Core integrity fell below 50% 31200 | -2/Protoforge | Found Prototype Device 31471 | -2/Protoforge | Forge Plexus network access discovered 31486 | -2/Protoforge | Found Cep. Rapid Grenade Launcher 31497 | -2/Protoforge | Identified Crosscalibrator 31516 | -2/Protoforge | Spotted Immortal 31536 | -2/Protoforge | Destroyed Immortal 31538 | -2/Protoforge | Found Corrupted Prototype Device 31574 | -2/Protoforge | Found Cep. Network Penetrator 31654 | -2/Protoforge | Spotted V621-s 31687 | -2/Protoforge | Destroyed V621-s 31690 | -2/Protoforge | Found Cep. Antigrav Storage Unit 31693 | -2/Protoforge | Found Cep. NT7 Matterbank 31694 | -2/Protoforge | Found Cep. Chromion Battery 31699 | -2/Protoforge | Found Cep. Matter Streamer 31717 | -2/Protoforge | Found Cep. Combat Aerolev Unit 31719 | -2/Protoforge | Found Cep. Combat Aerolev Unit 31747 | -2/Protoforge | Found Cep. Tactical Fusion Warhead 31759 | -2/Protoforge | Identified Cep. Antimissile System 31760 | -2/Protoforge | System corruption reached 10% 31771 | -2/Protoforge | Spotted Decapitator 31773 | -2/Protoforge | Spotted Decapitator 31773 | -2/Protoforge | Spotted V902-q 31799 | -2/Protoforge | Spotted V041-v 31799 | -2/Protoforge | Spotted V820-v 31809 | -2/Protoforge | Found Cep. Deflector Sword 31812 | -2/Protoforge | Found Faulty Cep. Deflector Sword 31815 | -2/Protoforge | Found Cep. Miniperforator 31816 | -2/Protoforge | Found Cep. Plasma Driver 31848 | -2/Protoforge | Spotted Decapitator 31848 | -2/Protoforge | Spotted Decapitator 31848 | -2/Protoforge | Spotted Decapitator 31856 | -2/Protoforge | Destroyed Decapitator 31859 | -2/Protoforge | Destroyed Decapitator 31859 | -2/Protoforge | Destroyed Decapitator 31895 | -2/Protoforge | Found Femtoactuators 31898 | -2/Protoforge | Found Femtoactuators 31901 | -2/Protoforge | Found Cep. Melee Reflex Suite 31910 | -2/Protoforge | Found Cep. Weapon Articulator 31939 | -2/Protoforge | Spotted Immortal 31939 | -2/Protoforge | Spotted Immortal 31959 | -2/Protoforge | Destroyed Immortal 31965 | -2/Protoforge | Destroyed Immortal 31969 | -2/Protoforge | Spotted V721-s 31969 | -2/Protoforge | Spotted V204-z 31977 | -2/Protoforge | Spotted V471-f 31981 | -2/Protoforge | Destroyed V471-f 31984 | -2/Protoforge | Found Prototype Device 31984 | -2/Protoforge | Identified Exp. Focal Shield 31988 | -2/Protoforge | Found Prototype Processor 31988 | -2/Protoforge | Identified Exp. Armor Integrity Analyzer 31991 | -2/Protoforge | Found Cep. Zero-point Core 32045 | -2/Protoforge | Found Cep. Energy Mantle 32047 | -2/Protoforge | Found Faulty Cep. Reaction Jets 32070 | -2/Protoforge | Found Cep. Phase Shift Module 32080 | -2/Protoforge | Found Faulty Cep. Phase Shift Module 32102 | -2/Protoforge | Build established: Hacker-Gladiator 32287 | -2/Protoforge | Found Cep. Beam Splitter 32382 | -2/Protoforge | Additional patrols dispatched to research labs 32388 | -2/Protoforge | Found Cep. Nanofilaments [Tensile] 32388 | -2/Protoforge | Installed Cep. Nanofilaments [Tensile], 3 resistances modified: KI +20%, TH -10%, I +20% 32447 | -2/Protoforge | Found Cep. Reaction Jets 32462 | -2/Protoforge | Spotted AP7-3 32512 | -2/Protoforge | Spotted AP7-3 32542 | -2/Protoforge | Destroyed AP7-3 32550 | -2/Protoforge | Destroyed AP7-3 32558 | -2/Protoforge | Found Prototype Device 32558 | -2/Protoforge | Identified Exp. ECM Suite 32561 | -2/Protoforge | Found Prototype Device 32561 | -2/Protoforge | Identified Cep. Hardlight Director 32584 | -2/Protoforge | Found Cep. Blasthammer 32588 | -2/Protoforge | Found Cep. Cloak Mesh 32592 | -2/Protoforge | Found Faulty Cep. Cloak Mesh 32601 | -2/Protoforge | First assault squad dispatched 32664 | -2/Protoforge | Found Prototype Processor 32664 | -2/Protoforge | Identified Exp. Target Analyzer 32776 | -2/Protoforge | Destroyed 8 combat bots 32806 | -2/Protoforge | Spotted EXE-6 32807 | -2/Protoforge | Spotted EXE-6 32832 | -2/Protoforge | UFD initiated attack on Protoforge (Readiness: Adequate) 32832 | -2/Protoforge | Loaded intel: 3 recycling unit locations 32854 | -2/Protoforge | Scraphulk reinforcements arrived? 32857 | -2/Protoforge | Destroyed EXE-6 32863 | -2/Protoforge | Scraphulk reinforcements arrived? 32867 | -2/Protoforge | Found Exp. Core Analyzer 32868 | -2/Protoforge | Optimus greeted in Protoforge 32947 | -2/Protoforge | Fabricated H-77 Assassin (x2) 32976 | -2/Protoforge | Fabricated H-77 Assassin? 32981 | -2/Protoforge | Fabricated H-77 Assassin? 32983 | -2/Protoforge | Fabricated H-77 Assassin? 33067 | -2/Protoforge | Spotted Immortal 33073 | -2/Protoforge | Destroyed Immortal 33083 | -2/Protoforge | Spotted Hotshot 33088 | -2/Protoforge | Spotted Hotshot 33089 | -2/Protoforge | Destroyed Hotshot 33096 | -2/Protoforge | Destroyed Hotshot 33104 | -2/Protoforge | Lost 3 allies 33115 | -2/Protoforge | Spotted Executioner 33118 | -2/Protoforge | Destroyed Executioner 33120 | -2/Protoforge | Allies destroyed Superfortress 33121 | -2/Protoforge | Spotted Hotshot 33123 | -2/Protoforge | Rewired Hotshot 33125 | -2/Protoforge | Spotted Striker 33129 | -2/Protoforge | Destroyed Striker 33133 | -2/Protoforge | Spotted Striker 33134 | -2/Protoforge | Destroyed Striker 33155 | -2/Protoforge | Destroyed 13 combat bots 33231 | -2/Protoforge | Destroyed Striker 33271 | -2/Protoforge | Spotted Decapitator 33275 | -2/Protoforge | Destroyed Decapitator 33284 | -2/Protoforge | Spotted Executioner 33287 | -2/Protoforge | Destroyed Decapitator 33291 | -2/Protoforge | Core integrity fell below 20% 33291 | -2/Protoforge | Destroyed Executioner 33320 | -2/Protoforge | Destroyed V902-q 33334 | -2/Protoforge | Found Faulty Cep. Combat Aerolev Unit 33356 | -2/Protoforge | Found Faulty Cep. Combat Aerolev Unit 33446 | -2/Protoforge | Found Cep. Network Penetrator 33487 | -2/Protoforge | Spotted Executioner 33487 | -2/Protoforge | Spotted Striker 33511 | -2/Protoforge | Destroyed Striker 33514 | -2/Protoforge | Destroyed Executioner 33526 | -2/Protoforge | Found Prototype Device 33526 | -2/Protoforge | Identified Adv. Kinecellerator 33590 | -2/Protoforge | Destroyed V204-z 33590 | -2/Protoforge | Destroyed V721-s 33611 | -2/Protoforge | Found Prototype Device 33611 | -2/Protoforge | Identified Thermal Barrier 33615 | -2/Protoforge | Found Cep. Combat Aerolev Unit 33620 | -2/Protoforge | Found Cep. Chromion Battery 33627 | -2/Protoforge | Found Cep. Zero-point Core 33638 | -2/Protoforge | Found Faulty Cep. Zero-point Core 33792 | -2/Protoforge | Found Faulty Cep. Hardlight Director 33820 | -2/Protoforge | Found Cep. Antimissile System 33888 | -2/Protoforge | Spotted Executioner 33891 | -2/Protoforge | Destroyed Executioner 33912 | -2/Protoforge | Found Exp. System Purifier 33924 | -2/Protoforge | Destroyed 10 combat bots 33959 | -2/Protoforge | Spotted Striker 33964 | -2/Protoforge | Destroyed Striker 34126 | -2/Protoforge | Destroyed Executioner 34140 | -2/Protoforge | Spotted Executioner 34145 | -2/Protoforge | Spotted Executioner 34146 | -2/Protoforge | Destroyed Executioner 34149 | -2/Protoforge | Destroyed Executioner 34186 | -2/Protoforge | Lost 3 allies 34221 | -2/Protoforge | Build established: Mutant 34251 | -2/Protoforge | UFD reported confirmed Drillbomb installation 34352 | -2/Protoforge | P-80 Master assimilated allied Lugger 195 34393 | -2/Protoforge | Destroyed Executioner 34394 | -2/Protoforge | Spotted Striker 34402 | -2/Protoforge | Destroyed Striker 34434 | -2/Protoforge | Spotted Executioner 34435 | -2/Protoforge | Spotted Striker 34438 | -2/Protoforge | Destroyed Striker 34566 | -2/Protoforge | Spotted Executioner 34570 | -2/Protoforge | P-80 Master assimilated allied U3-T4S(E) 34584 | -2/Protoforge | Destroyed Executioner 34591 | -2/Protoforge | Spotted Executioner 34592 | -2/Protoforge | Spotted Executioner 34602 | -2/Protoforge | P-80 Master assimilated allied 02FAP-D 34602 | -2/Protoforge | Destroyed Executioner 34608 | -2/Protoforge | Destroyed Executioner 34638 | -2/Protoforge | Destroyed 15 combat bots 34642 | -2/Protoforge | Lost 7 allies 34701 | -2/Protoforge | Spotted Executioner 34702 | -2/Protoforge | Spotted Executioner 34705 | -2/Protoforge | Destroyed Executioner 34740 | -2/Protoforge | Spotted Executioner 34744 | -2/Protoforge | Spotted Executioner 34747 | -2/Protoforge | Destroyed Executioner 34748 | -2/Protoforge | P-80 Master assimilated allied R7-IYB(E) 34750 | -2/Protoforge | Destroyed Executioner 34785 | -2/Protoforge | Lost 3 allies 34806 | -2/Protoforge | UFD reported confirmed Drillbomb installation 34839 | -2/Protoforge | Spotted Executioner 34856 | -2/Protoforge | Destroyed Executioner 34886 | -2/Protoforge | Lost 3 allies 34896 | -2/Protoforge | Destroyed 9 combat bots 34906 | -2/Protoforge | UFD reported confirmed Drillbomb installation 34937 | -2/Protoforge | Lost 3 allies 34940 | -2/Protoforge | Destroyed Striker 34942 | -2/Protoforge | Spotted Striker 34950 | -2/Protoforge | Destroyed Executioner 34951 | -2/Protoforge | Spotted Striker 34953 | -2/Protoforge | Destroyed Striker 34964 | -2/Protoforge | UFD reported confirmed Drillbomb installation 35008 | -2/Protoforge | Lost 3 allies 35026 | -2/Protoforge | Destroyed 11 combat bots 35040 | -2/Protoforge | Spotted Executioner 35045 | -2/Protoforge | Spotted Striker 35046 | -2/Protoforge | Destroyed Striker 35066 | -2/Protoforge | Spotted Executioner 35066 | -2/Protoforge | Destroyed Executioner 35120 | -2/Protoforge | Spotted Striker 35126 | -2/Protoforge | Spotted Striker 35128 | -2/Protoforge | Destroyed Striker 35192 | -2/Protoforge | UFD reported confirmed Drillbomb installation 35196 | -2/Protoforge | Destroyed 7 combat bots 35216 | -2/Protoforge | Spotted Executioner 35234 | -2/Protoforge | Spotted Striker 35237 | -2/Protoforge | Spotted Executioner 35238 | -2/Protoforge | Destroyed Striker 35260 | -2/Protoforge | Destroyed Executioner 35263 | -2/Protoforge | Spotted Executioner 35306 | -2/Protoforge | Destroyed Executioner 35320 | -2/Protoforge | Destroyed Striker 35320 | -2/Protoforge | Spotted Striker 35323 | -2/Protoforge | Destroyed Executioner 35385 | -2/Protoforge | Destroyed 15 combat bots 35392 | -2/Protoforge | Lost 5 allies 35396 | -2/Protoforge | Spotted Executioner 35397 | -2/Protoforge | Destroyed Executioner 35451 | -2/Protoforge | Destroyed 7 combat bots 35555 | -2/Protoforge | Found UFD Drillbomb 35568 | -2/Protoforge | Installed UFD Drillbomb at designated target 35568 | -2/Protoforge | UFD reported confirmed Drillbomb installation 35655 | -2/Protoforge | Spotted Executioner 35658 | -2/Protoforge | Destroyed Executioner 35658 | -2/Protoforge | Destroyed Executioner 35698 | -2/Protoforge | Destroyed 11 combat bots 35706 | -2/Protoforge | Spotted Striker 35706 | -2/Protoforge | Spotted Striker 35721 | -2/Protoforge | Destroyed Striker 35726 | -2/Protoforge | Destroyed Striker 35736 | -2/Protoforge | Spotted Striker 35739 | -2/Protoforge | Destroyed Striker 35842 | -2/Protoforge | Found Cep. Networked Targeting System 35905 | -2/Protoforge | Spotted Executioner 35912 | -2/Protoforge | Spotted Striker 35912 | -2/Protoforge | Destroyed Striker 35921 | -2/Protoforge | Destroyed Executioner 36027 | -2/Protoforge | Spotted Executioner 36028 | -2/Protoforge | Destroyed Executioner 36031 | -2/Protoforge | Destroyed Executioner 36058 | -2/Protoforge | Destroyed 7 combat bots 36073 | -2/Protoforge | UFD reported confirmed Drillbomb installation 36157 | -2/Protoforge | Spotted Executioner 36169 | -2/Protoforge | Destroyed Executioner 36169 | -2/Protoforge | Destroyed Executioner 36192 | -2/Protoforge | Destroyed 7 combat bots 36207 | -2/Protoforge | Spotted Executioner 36208 | -2/Protoforge | Spotted Striker 36215 | -2/Protoforge | Spotted Striker 36234 | -2/Protoforge | Spotted Striker 36235 | -2/Protoforge | Destroyed Striker 36238 | -2/Protoforge | Destroyed Striker 36247 | -2/Protoforge | Destroyed Striker 36270 | -2/Protoforge | Destroyed Executioner 36329 | -2/Protoforge | Spotted Executioner 36335 | -2/Protoforge | Destroyed 10 combat bots 36336 | -2/Protoforge | Destroyed Executioner 36432 | -2/Protoforge | Spotted Executioner 36433 | -2/Protoforge | Destroyed Executioner 36514 | -2/Protoforge | Spotted Striker 36520 | -2/Protoforge | Destroyed Striker 36528 | -2/Protoforge | Spotted Executioner 36537 | -2/Protoforge | Destroyed Executioner 36576 | -2/Protoforge | Destroyed 10 combat bots 36634 | -2/Protoforge | Spotted Executioner 36636 | -2/Protoforge | Destroyed Executioner 36639 | -2/Protoforge | Destroyed Executioner 36666 | -2/Protoforge | Destroyed 16 combat bots 36687 | -2/Protoforge | Spotted Striker 36694 | -2/Protoforge | Spotted Striker 36695 | -2/Protoforge | Destroyed Striker 36696 | -2/Protoforge | Spotted Striker 36698 | -2/Protoforge | Destroyed Striker 36719 | -2/Protoforge | Destroyed 7 combat bots 36720 | -2/Protoforge | UFD reported confirmed Drillbomb installation 36725 | -2/Protoforge | Spotted Executioner 36725 | -2/Protoforge | Spotted Striker 36731 | -2/Protoforge | Destroyed Striker 36731 | -2/Protoforge | Destroyed Executioner 36745 | -2/Protoforge | Spotted Striker 36746 | -2/Protoforge | Destroyed Striker 36783 | -2/Protoforge | Spotted Striker 36784 | -2/Protoforge | Spotted Executioner 36784 | -2/Protoforge | Spotted Executioner 36784 | -2/Protoforge | Spotted Striker 36784 | -2/Protoforge | P-80 Master assimilated allied Lugger 539 36786 | -2/Protoforge | Destroyed Executioner 36797 | -2/Protoforge | Destroyed Striker 36809 | -2/Protoforge | Spotted Executioner 36809 | -2/Protoforge | Spotted Striker 36827 | -2/Protoforge | Destroyed 16 combat bots 36830 | -2/Protoforge | Destroyed Striker 36830 | -2/Protoforge | Destroyed Striker 36837 | -2/Protoforge | Destroyed Executioner 36840 | -2/Protoforge | Destroyed Executioner 36889 | -2/Protoforge | Spotted Striker 36892 | -2/Protoforge | Spotted Striker 36893 | -2/Protoforge | Destroyed Striker 36899 | -2/Protoforge | Destroyed Striker 36922 | -2/Protoforge | Spotted Striker 36922 | -2/Protoforge | Spotted Striker 36924 | -2/Protoforge | Destroyed Striker 36926 | -2/Protoforge | P-80 Master assimilated allied MP-0E8(E) 36927 | -2/Protoforge | Destroyed Striker 36960 | -2/Protoforge | Destroyed 23 combat bots 36961 | -2/Protoforge | Destroyed Striker 36986 | -2/Protoforge | Destroyed Striker 36997 | -2/Protoforge | Spotted Executioner 36997 | -2/Protoforge | Destroyed Executioner 37000 | -2/Protoforge | Spotted Executioner 37001 | -2/Protoforge | Destroyed Executioner 37003 | -2/Protoforge | Spotted Striker 37004 | -2/Protoforge | Destroyed Striker 37042 | -2/Protoforge | Destroyed 15 combat bots 37052 | -2/Protoforge | Spotted Executioner 37054 | -2/Protoforge | Spotted Executioner 37054 | -2/Protoforge | Destroyed Executioner 37062 | -2/Protoforge | Destroyed Executioner 37116 | -2/Protoforge | Spotted Striker 37116 | -2/Protoforge | Spotted Executioner 37123 | -2/Protoforge | Destroyed Striker 37125 | -2/Protoforge | Spotted Striker 37143 | -2/Protoforge | Destroyed Striker 37164 | -2/Protoforge | Destroyed 7 combat bots 37386 | -2/Protoforge | UFD reported confirmed Drillbomb installation 37393 | -2/Protoforge | Spotted Striker 37394 | -2/Protoforge | Spotted Striker 37394 | -2/Protoforge | Spotted Striker 37398 | -2/Protoforge | Destroyed Striker 37413 | -2/Protoforge | Destroyed Striker 37614 | -2/Protoforge | Spotted Executioner 37626 | -2/Protoforge | Destroyed Executioner 37631 | -2/Protoforge | Spotted Striker 37631 | -2/Protoforge | Spotted Striker 37659 | -2/Protoforge | Found Cep. Core Shell 37752 | -2/Protoforge | Destroyed 7 combat bots 37824 | -2/Protoforge | Spotted Executioner 37825 | -2/Protoforge | Destroyed Executioner 37825 | -2/Protoforge | Destroyed Executioner 37887 | -2/Protoforge | Spotted Executioner 37891 | -2/Protoforge | Spotted Executioner 37893 | -2/Protoforge | Destroyed Executioner 37907 | -2/Protoforge | Spotted Striker 37907 | -2/Protoforge | Spotted Striker 37908 | -2/Protoforge | Destroyed Striker 37911 | -2/Protoforge | Destroyed Striker 37938 | -2/Protoforge | UFD reported confirmed Drillbomb installation 37939 | -2/Protoforge | UFD began Drillbomb countdown 37941 | -2/Protoforge | Found Exp. Core Analyzer 37947 | -2/Protoforge | Destroyed 11 combat bots 37951 | -2/Protoforge | Entered Access 37951 | -1/Access | Evolved 2 slots: Propulsion x1, Utility x1 38045 | -1/Access | Spotted Executioner 38111 | -1/Access | Spotted B-99 Colossus 38111 | -1/Access | Spotted B-99 Colossus 38111 | -1/Access | Identified exit to Command 38140 | -1/Access | High security lockdown imminent 38141 | -1/Access | Fabricated Exp. Utility Shielding? 38190 | -1/Access | Destroyed 12 combat bots 38198 | -1/Access | Spotted Executioner 38220 | -1/Access | High security lockdown engaged 38269 | -1/Access | Spotted B-99 Colossus 38344 | -1/Access | Spotted B-99 Colossus 38428 | -1/Access | Spotted B-99 Colossus 38482 | -1/Access | Destroyed B-99 Colossus 38488 | -1/Access | Spotted Executioner 38492 | -1/Access | Destroyed Executioner 38535 | -1/Access | Destroyed 9 combat bots 38672 | -1/Access | Spotted Executioner 38673 | -1/Access | Destroyed Executioner 38715 | -1/Access | Destroyed 8 combat bots 38719 | -1/Access | Spotted Investigator 38724 | -1/Access | Destroyed Investigator 38751 | -1/Access | Spotted Executioner 38751 | -1/Access | Spotted Executioner 38751 | -1/Access | Destroyed Executioner 38754 | -1/Access | Spotted Executioner 38754 | -1/Access | Spotted Striker 38754 | -1/Access | Spotted Executioner 38765 | -1/Access | Destroyed Striker 38768 | -1/Access | Destroyed Executioner 38772 | -1/Access | Spotted Investigator 38777 | -1/Access | Scanned by Researcher 38780 | -1/Access | Destroyed Executioner 38781 | -1/Access | Destroyed Executioner 38807 | -1/Access | Destroyed Investigator 38811 | -1/Access | Destroyed 23 combat bots 38831 | -1/Access | Spotted Executioner 38832 | -1/Access | Spotted Executioner 38837 | -1/Access | Destroyed Executioner 38854 | -1/Access | Destroyed Executioner 38858 | -1/Access | Spotted Executioner 38859 | -1/Access | Destroyed Executioner 38869 | -1/Access | Spotted Executioner 38869 | -1/Access | Destroyed Executioner 38876 | -1/Access | Spotted Striker 38889 | -1/Access | Destroyed Striker 38908 | -1/Access | Found Exp. Targeting Computer 38942 | -1/Access | Destroyed 25 combat bots 38994 | -1/Access | Spotted Executioner 39006 | -1/Access | Destroyed Executioner 39027 | -1/Access | Destroyed 19 combat bots 39039 | -1/Access | Destroyed Executioner 39045 | -1/Access | Destroyed Executioner 39048 | -1/Access | Found Exp. Core Analyzer 39070 | -1/Access | Spotted B-99 Colossus 39079 | -1/Access | Entered Command 39083 | -1/Command | Phase Generator disabled 39142 | -1/Command | High security lockdown imminent 39160 | -1/Command | Destroyed Striker 39164 | -1/Command | Destroyed Striker 39222 | -1/Command | High security lockdown engaged 39260 | -1/Command | Spotted Striker 39261 | -1/Command | Destroyed Striker 39261 | -1/Command | Destroyed Executioner 39286 | -1/Command | Destroyed 150 combat bots 39327 | -1/Command | Spotted Executioner 39329 | -1/Command | Destroyed Executioner 39387 | -1/Command | Spotted Investigator 39391 | -1/Command | Destroyed Investigator 39482 | -1/Command | Destroyed 17 combat bots 39505 | -1/Command | Spotted Executioner 39505 | -1/Command | Spotted Executioner 39538 | -1/Command | Spotted Executioner 39539 | -1/Command | Spotted Striker 39556 | -1/Command | Destroyed Striker 39600 | -1/Command | Destroyed Executioner 39601 | -1/Command | Destroyed Executioner 39609 | -1/Command | Destroyed Executioner 39612 | -1/Command | Found Exp. Core Analyzer 39613 | -1/Command | Found Exp. Targeting Computer 39630 | -1/Command | Destroyed 20 combat bots 39639 | -1/Command | Spotted Executioner 39639 | -1/Command | Spotted Executioner 39645 | -1/Command | Destroyed Executioner 39652 | -1/Command | Rewired Executioner 39743 | -1/Command | Destroyed 13 combat bots 39770 | -1/Command | Spotted Executioner 39770 | -1/Command | Spotted Striker 39772 | -1/Command | Spotted Executioner 39772 | -1/Command | Spotted Striker 39772 | -1/Command | Spotted Striker 39772 | -1/Command | Spotted Striker 39772 | -1/Command | Spotted Executioner 39772 | -1/Command | Spotted Executioner 39772 | -1/Command | Spotted Striker 39772 | -1/Command | Spotted Striker 39773 | -1/Command | System corruption reached 10% 39775 | -1/Command | Destroyed Executioner 39777 | -1/Command | Destroyed Striker 39777 | -1/Command | Destroyed Striker 39800 | -1/Command | Spotted Combat Programmer 39801 | -1/Command | Destroyed 19 combat bots 39817 | -1/Command | Destroyed Combat Programmer 39827 | -1/Command | Build established: Sprinter 39843 | -1/Command | Destroyed Striker 39846 | -1/Command | Destroyed Striker 39847 | -1/Command | Destroyed Striker 39850 | -1/Command | Destroyed Striker 39860 | -1/Command | Spotted M Guard 39877 | -1/Command | Spotted Combat Programmer 39882 | -1/Command | Destroyed Combat Programmer 39917 | -1/Command | Met MAIN.C 39920 | -1/Command | 0b10 Conduit disabled 39943 | -1/Command | Destroyed MAIN.C Shell 39944 | -1/Command | MAIN.C activated Command garrisons 39964 | -1/Command | Destroyed MAIN.C 39966 | -1/Command | Found Zero-point Reactor 39969 | -1/Command | Lost 3 parts (1p1n1u) 39974 | -1/Command | Identified Hpw. Transdimensional Reconstructor 39974 | -1/Command | Discovered new exit (range 40) 39974 | -1/Command | Discovered new exit (range 105) 39974 | -1/Command | Extracted map data and part IDs from MAIN.C's data core 39978 | -1/Command | Found Exp. Powered Armor 39980 | -1/Command | Found Exp. Powered Armor 39987 | -1/Command | Spotted M Guard 40065 | -1/Command | Spotted B-99 Colossus 40085 | -1/Command | Destroyed M Guard 40085 | -1/Command | All MAIN.C guards destroyed 40138 | -1/Command | Found Femtoactuators 40140 | -1/Command | Found Exp. System Purifier 40180 | -1/Command | Build established: Scavenger-Sprinter 40249 | -1/Command | Found Perforator 41021 | -1/Command | Warped through subspace to slip node 41021 | -1/Command | Discovered new exit (range 4) 41026 | -1/Command | Found Exp. ECM Suite 41047 | -1/Command | Entered Access_0 41048 | -1/Access_0 | Met Architect 41052 | -1/Access_0 | Destroyed A8 41055 | -1/Access_0 | Architect warped through subspace 41108 | -1/Access_0 | Architect warped through subspace 41154 | -1/Access_0 | Architect warped through subspace 41175 | -1/Access_0 | A6 warped into view 41177 | -1/Access_0 | Destroyed A6 41180 | -1/Access_0 | Subspace Access Node disabled 41200 | -1/Access_0 | Architect warped through subspace 41206 | -1/Access_0 | Found Femtoactuators 41221 | -1/Access_0 | Architect warped through subspace 41242 | -1/Access_0 | Build established: Scavenger-Mutant 41262 | -1/Access_0 | Subspace Access Node disabled 41273 | -1/Access_0 | Core integrity fell below 50% 41275 | -1/Access_0 | Architect warped through subspace 41286 | -1/Access_0 | Subspace Access Node disabled 41311 | -1/Access_0 | Architect warped through subspace 41333 | -1/Access_0 | Architect warped through subspace 41338 | -1/Access_0 | A5 warped into view 41342 | -1/Access_0 | Destroyed A5 41374 | -1/Access_0 | Architect warped through subspace 41397 | -1/Access_0 | Architect warped through subspace 41407 | -1/Access_0 | Architect warped through subspace 41423 | -1/Access_0 | Subspace Access Node disabled 41452 | -1/Access_0 | Destroyed A2 41454 | -1/Access_0 | Extracted Singularity Gate Test 138-C access codes from A2's data core 41484 | -1/Access_0 | Found Core Expander 41490 | -1/Access_0 | Singularity Gate disabled 41514 | -1/Access_0 | Destroyed Architect 41515 | -1/Access_0 | Extracted unknown sensor trigger ID from Architect's data core 41540 | -1/Access_0 | Found Prototype Hackware 41540 | -1/Access_0 | Identified Architect God Chip A 41543 | -1/Access_0 | Found Prototype Device 41543 | -1/Access_0 | Identified Desublimator 41549 | -1/Access_0 | Found Exp. Phase Shifter 41556 | -1/Access_0 | Found Hpw. Transdimensional Reconstructor 41566 | -1/Access_0 | A4 warped into view 41590 | -1/Access_0 | Destroyed A4 41591 | -1/Access_0 | Build established: Scavenger-Sprinter 41676 | -1/Access_0 | Found Exp. Weapon Cycler 41687 | -1/Access_0 | Found Prototype Device 41688 | -1/Access_0 | Identified ST Field Compressor 41764 | -1/Access_0 | Found Sigix Corpse 41810 | -1/Access_0 | Found Core Regenerator 41810 | -1/Access_0 | Used Core Regenerator, restored core integrity (+400) 42089 | -1/Access_0 | A3 warped into view 42111 | -1/Access_0 | Destroyed A3 42301 | -1/Access_0 | Found Hpw. Transdimensional Reconstructor 42364 | -1/Access_0 | Warped through subspace to slip node 42364 | -1/Access_0 | Discovered new exit (range 8) 42365 | -1/Access_0 | Warped through subspace to slip node 42367 | -1/Access_0 | Warped through subspace to slip node 42377 | *** | Establishing 0b11! Last Messages --------------- 42364_ EXIT=FOUND 42365_ Warped through subspace, drawn to slip node. 42374_ HV Slug penetrates Wall. 42374_ HV Slug penetrates Dimensional Slip Node. 42374_ HV Slug penetrates Wall. 42374_ HV Slug penetrates Dimensional Slip Node. 42374_ HV Slug penetrates Wall. 42374_ HV Slug penetrates Dimensional Slip Node. 42374_ HV Slug penetrates Wall. 42374_ HV Slug penetrates Dimensional Slip Node. 42374_ HV Slug penetrates Wall. 42374_ HV Slug penetrates Dimensional Slip Node. 42374_ HV Slug penetrates Wall. 42374_ HV Slug penetrates Dimensional Slip Node. 42374_ HV Slug penetrates Wall. 42375_ Dimensional Slip Node collapses. 42375_ Dimensional Slip Node implodes. 42375_ Wall collapses. [Achievement: Unfinished Business] [Achievement: 150k Club] Map ----- +----------------------------------------------------+ | | | | | | | | | | | | | | | | | | | | | | | | | | | | | | | | | ?????????????????????????????????????????????????? | | ?????????????????????????????????????????????????? | | ?????????????????????????????????????????????????? | | ?????????????????????????????????????????????????? | | ?????????????????????????????????????????????????? | | ?????????????????????????????????????????????????? | | ????????????????????????###??????????????????????? | | ???????????????????????## ##?????????????????????? | | ???????????????????????# #?????????????????????? | | ???????????????????????# @ #?????????????????????? | | ??????????????????????## #?????????????????????? | | ?????????????????????? #?????????????????????? | | ????????????????????? ????????????????????? | | ???????????????????? #???????????????????? | | ??????????????????# #??????????????????? | | ??????????????????# #??????????????????? | | ??????????????????# #??????????????????? | | ??????????????????# #??????????????????? | | ??????????????????# #??????????????????? | | ??????????????????## ##??????????????????? | | ???????????????????# #???????????????????? | | ???????????????????### ###???????????????????? | | ?????????????????????#######?????????????????????? | | ?????????????????????????????????????????????????? | | ?????????????????????????????????????????????????? | | ?????????????????????????????????????????????????? | | ?????????????????????????????????????????????????? | | ?????????????????????????????????????????????????? | | ?????????????????????????????????????????????????? | | ?????????????????????????????????????????????????? | | ?????????????????????????????????????????????????? | | ?????????????????????????????????????????????????? | | ?????????????????????????????????????????????????? | | ?????????????????????????????????????????????????? | +----------------------------------------------------+ Best States ------------- Heat Dissipation 152 Energy Generation 89 Energy Capacity 1120 Matter Stores 300 Matter Capacity 300 Sight Range 20 Terrain Scan Density 10 ECM Strength 3 Jamming Range 16 Cloak Strength 9 Power Amplification 30 Additional Mass Support 12 Corruption Containment 12 Armor Coverage 750 Resistance: KI 50 Resistance: TH 65 Resistance: I 20 Core Shielding 90 Propulsion Shielding 66 Utility Shielding 90 Weapon Shielding 90 Point Defense Rating 480 Projectile Deflection 15 Weapon Cycling 30 Melee Speed Boost 50 Phase Shifting 25 Evasion (%) 100 Targeting Accuracy 30 Melee Accuracy 16 Target Analysis 8 Core Analysis 12 Armor Integrity Analysis 50 Recoil Reduction 3 Matter Filtering 50 Energy Filtering 30 Particle Charging 30 Offensive Hacking 66 Defensive Hacking 20 Authchip Count 3 Item Schematics ----------------- Adv. ECM Suite | -8/Storage | Hacked Lrg. Storage Unit | -8/Recycling | Hacked Hvy. Plasma Cannon | -8/Recycling | Hacked Aerolev Unit | -8/Recycling | Hacked Imp. Hover Unit | -8/Recycling | Hacked System Guard | -8/Recycling | Hacked Imp. Gravmag System | -6/Factory | Scanalyzed Adv. Melee Analysis Suite | -6/Factory | Scanalyzed Cmb. Airjet | -6/Factory | Scanalyzed Lrg. Matter Pod | -6/Factory | Extracted Combat Drone Bay | -6/Data Miner | Free Lgt. Regenerative Plating | -6/Data Miner | Free Enh. Flexi-carbon Leg | -6/Data Miner | Free Exp. Heat Sink | -6/Data Miner | Free Plasma Sword | -6/Data Miner | Free Shield Leg | -6/Data Miner | Free Adv. Hardlight Generator | -6/Data Miner | Free Adv. Datajack | -6/Data Miner | Free Imp. Launcher Guidance Computer | -6/Data Miner | Free Adv. Thermal Generator | -6/Data Miner | Free Adv. Force Field | -6/Data Miner | Free Weapon Mount | -5/Factory | Hacked Core Analyzer | -5/Factory | Hacked Cmb. Linear Gravjet | -4/Factory | Downloaded Nanoactuators | -4/Factory | Hacked Adv. Transmission Jammer | -4/Factory | Hacked Exp. Utility Shielding | -3/Research | Scanalyzed Tesla Rifle | -3/Research | Extracted Imp. Thunder Leg | -3/Research | Extracted Remote Datajack | -3/Research | Extracted Adv. Focal Shield | -3/Research | Extracted Exp. Terrain Scan Processor | -3/Quarantine | Archive Exp. Coolant Injector | -3/Quarantine | Archive Hvy. Neutron Cannon | -3/Quarantine | Archive Cld. Phase Gun | -2/Testing | Archive Centrium Light Armor Plating | -2/Testing | Archive Exp. Q-thruster | -2/Testing | Archive Tactical Quantum Warhead | -2/Protoforge | Archive Adv. Remote Shield | -2/Protoforge | Archive Hvy. Antimatter Reactor | -2/Protoforge | Archive Coolant Network | -2/Protoforge | Archive Exp. System Shield | -2/Protoforge | Archive Adv. Myomer Leg | -2/Protoforge | Archive Exp. Shield Generator | -2/Protoforge | Archive Adv. Plasma Rifle | -2/Protoforge | Archive Ragnarok Missile Launcher | -2/Protoforge | Archive Exp. Thermal Shield | -2/Protoforge | Archive Com. Particle Reactor | -2/Protoforge | Archive Imp. Q-thruster | -2/Protoforge | Archive Electron Diverter | -2/Protoforge | Archive Robot Schematics ------------------ M-13 Machinist | -10/Mines | Hacked M-28 Smith | -8/Recycling | Hacked M-22 Extractor | -6/Data Miner | Free S-27 Virus | -6/Data Miner | Free H-66 Slayer | -6/Data Miner | Free L-61 Swordsman | -6/Data Miner | Free A-27 Freighter | -6/Data Miner | Free K-01 Serf | -2/Testing | Archive R-10 Processor | -2/Testing | Archive X-87 Electro | -2/Testing | Archive X-82 Rainmaker | -2/Protoforge | Archive R-06 Scavenger | -2/Protoforge | Archive H-77 Assassin | -2/Protoforge | Archive G-73 Enforcer | -2/Protoforge | Archive S-43 Plague | -2/Protoforge | Archive H-88 Terminator | -2/Protoforge | Archive Fabricated ------------ Adv. ECM Suite | x2 | -6/Factory | Authchip Weapon Mount | x2 | -5/Factory | Authchip Cmb. Linear Gravjet | x2 | -4/Factory | Authchip Cmb. Linear Gravjet | x2 | -4/Factory | Authchip Core Analyzer | x2 | -4/Factory Adv. Transmission Jammer | x2 | -4/Armory | Authchip Exp. Heat Sink | x1 | -4/Armory Cmb. Linear Gravjet | x2 | -3/Research Cmb. Linear Gravjet | x2 | -3/Research Adv. Transmission Jammer | x2 | -2/Research H-77 Assassin | x2 | -2/Protoforge H-77 Assassin | x2 | -2/Protoforge H-77 Assassin | x2 | -2/Protoforge H-77 Assassin | x2 | -2/Protoforge Exp. Utility Shielding | x1 | -1/Access Repaired ---------- Lgt. Treads | 2% | -10/Materials Lgt. Assault Rifle | 17% | -10/Materials Lgt. Treads | 62% | -10/Materials Lgt. EM Pulse Cannon | 21% | -8/Storage Lgt. EM Pulse Cannon | 34% | -8/Storage Imp. Treads | 25% | -8/Storage Lgt. EM Pulse Cannon | 45% | -8/Storage Nanoactuators | 10% | -6/Factory Imp. Airjet | 55% | -6/Factory Cmb. Airjet | 12% | -5/Factory Cmb. Linear Gravjet | 5% | -4/Factory Weapon Mount | 58% | -4/Factory Neutrino Core | 42% | -4/Factory Cmb. Linear Gravjet | 55% | -4/Factory Adv. Cloaking Device | 8% | -4/Factory Imp. Medium Armor Plating | 50% | -4/Factory Cmb. Linear Gravjet | 53% | -3/Research Plasma Lance | 34% | -3/Research Lgt. Quantum Reactor | 50% | -3/Research Cld. Antigrav System | 70% | -3/Research Lgt. Quantum Reactor | 65% | -3/Research Exp. Heat Sink | 53% | -3/Research Plasma Lance | 64% | -3/Quarantine Weapon Mount | 8% | -3/Quarantine Lgt. Quantum Reactor | 33% | -3/Quarantine Nanoactuators | 45% | -2/Research Cld. Antigrav System | 41% | -2/Research Cmb. Linear Gravjet | 68% | -2/Research Cmb. Linear Gravjet | 17% | -2/Protoforge Cmb. Linear Gravjet | 17% | -2/Protoforge Cmb. Linear Gravjet | 44% | -2/Protoforge Studied --------- Autogun | -9/Materials | Hacked Hvy. Assault Rifle | -9/Materials | Hacked Imp. Ion Engine | -9/Materials | Hacked Lgt. EM Pulse Cannon | -9/Materials | Hacked Field Laser | -8/Materials | Hacked Deuterium Engine | -8/Materials | Hacked Minigun | -8/Materials | Hacked Katana | -8/Materials | Hacked Imp. Treads | -8/Materials | Hacked Lgt. Angular Momentum Engine | -6/Factory | Hacked Rocket Launcher | -6/Factory | Hacked Imp. Gravmag System | -6/Factory | Hacked Cmb. Airjet | -6/Factory | Hacked Lrn. Missile Launcher | -6/Factory | Hacked Phase Cannon | -6/Factory | Hacked Lgt. Deuterium Engine | -4/Factory | Hacked Mic. Fission Core | -4/Factory | Hacked Linear Gravjet | -4/Factory | Hacked Hyp. Mass Driver | -4/Factory | Hacked Imp. Antigrav System | -4/Factory | Hacked Neutrino Core | -4/Factory | Hacked Lgt. Quantum Reactor | -3/Quarantine | Hacked Cmb. Linear Gravjet | -3/Quarantine | Hacked Com. HERF Cannon | -3/Quarantine | Hacked Lgt. Ion Engine | -2/Testing | Hacked Alien Tech Used ----------------- Core Expander Integrated Mediator Subatomic Replicator Concept Nanofilaments [Tensile] Transdimensional Reconstructor Core Regenerator High-powered Transdimensional Reconstructor Achievements -------------- 150k Club Betrayal Most Foul Disruptive Presence Dominance Asserted Friends Forever Gladiator I Have Friends Everywhere IP Theft Not Today, Chutes Triple Plus Unfinished Business Challenges ------------ None Game ------ Seed GravmagLightningExoskeleton Manual? 0 Play Time 14:20:29 Cumulative 685.9 hours Start 2025.12.02 @ 16:34:40 End 2025.12.03 @ 23:44:44 Sessions 3 Manual Loads 0 Difficulty Rogue Special Mode None Game No. 225 Rogue 209 Adventurer 15 Explorer 1 Win Type 1 Total 40 Types 10/4/10/2/2/0/6/3/1/2 Lore% 94 Gallery% 90 Achievement% 68 Wizard Run 0 Options --------- Layout 0 ASCII 0 Keyboard 0 Movement Numpad Keybinds 0 Fullscreen 1 Font 18/SmallcapsGlow Map View 76x50 Zoom Use 0% Tactical HUD 1 Map Filters NONE Filters NONE Steam 1 RUN: dc6d1fc6-110b-4cb7-98f5-04d0dc2b502a